{"text_format":"1","workbook":"xlsx","n_sheets":32,"sheets":["冊子表紙","目次","達成度評価ｼｰﾄ表紙","教育理念等中表紙","教育理念・卒業時の人物像","学習・教育到達目標と基本項目","達成度総合評価基準表紙","達成度総合評価基準","授業科目の流れ中表紙","授業科目の流れⅠ","授業科目の流れⅡ","語学・教養・専門科目一覧中表紙","語学","教養","専門","科目外","【 達成度総合評価報告・学習計画書 】","達成度自己評価表表紙","【 教養 】","【 視点 】","【 倫理 】","【 基礎 】","【 専門 】","【 開発 】(a)","【 開発 】(b)","【 開発 】(c)","【 国際 】","【 論理 】","【 自発 】","【 計画 】","【 ﾘｰﾀﾞｰ 】","変更履歴"],"not_rendered":{"charts":0,"images":4,"macros":1,"external_links":0,"defined_names":31,"comments":0,"pivot_tables":0},"unopened":[],"bounds":{"document_bytes":16777216,"sheet_cells":100000,"rows_first":2000,"rows_last":500,"rows_between":2000,"halvings":0,"cell_chars":16384,"cell_head_chars":4096},"cells_cut":0,"cells_raw":0,"read":"whole","date_system":"1900"}

{"sheet":"冊子表紙","index":0,"n_rows":6,"n_cols":3,"rows_kept":6,"cut":false,"hidden":false,"merged":[[6,2,6,14],[7,0,7,14],[4,0,4,14],[0,0,0,14],[1,0,1,14],[2,0,2,14],[3,0,3,14],[5,2,5,14]]}
[]
["技術者への道標 2022"]
[]
["令和4年度入学生用"]
[]
[null,null,"京都工芸繊維大学　工芸科学部　設計工学域　機械工学課程"]

{"sheet":"目次","index":1,"n_rows":20,"n_cols":13,"rows_kept":20,"cut":false,"hidden":false,"merged":[[3,1,3,5],[19,5,19,11],[11,3,11,10],[7,6,7,11],[6,7,6,11],[18,7,18,11],[6,3,6,6],[16,4,16,11],[14,4,14,11],[10,10,10,11],[8,5,8,11],[13,2,13,5],[8,3,8,4],[18,2,18,6],[17,4,17,11],[0,0,0,12],[1,1,1,12],[1,0,19,0],[4,5,4,11],[9,5,9,11],[5,2,5,8],[15,4,15,11],[12,3,12,10],[19,2,19,4],[2,1,2,10],[4,2,4,4],[7,3,7,5],[5,9,5,11],[9,2,9,4],[13,6,13,11],[10,2,10,9]]}
[]
[null,"技術者への道標 2022　目次"]
[]
[null,"工芸科学部 設計工学域　機械工学課程"]
[null,null,"達成度評価シート",null,null,"・・・・・・・・・・・・・・・・・・・・・・・・・・・・・・・・・・・・・・・・・・・・・・・・",null,null,null,null,null,null,1]
[null,null,"教育理念，卒業時の人物像，学習・教育到達目標",null,null,null,null,null,null,"・・・・・・・・・・・・・・・・・・・・・・・・・・・・・・・・・・・・・・",null,null,3]
[null,null,null,"教育理念，卒業時の人物像",null,null,null,"・・・・・・・・・・・・・・・・・・･･････・・・・・・・・・・・・・・・・",null,null,null,null,4]
[null,null,null,"学習・教育到達目標",null,null,"・・・・・・・・・・・・・・・・・・･･････・・・・・・・・・・・・・・・・",null,null,null,null,null,5]
[null,null,null,"基本項目",null,"・・・・・・・・・・・・・・・・・・・・・・・・・・・・・・・・・・・・・・・・・・・・・・・・",null,null,null,null,null,null,6]
[null,null,"達成度総合評価基準",null,null,"・・・・・・・・・・・・・・・・・・・・・・・・・・・・・・・・・・・・・・・・・・・・・",null,null,null,null,null,null,7]
[null,null,"学習・教育到達目標を達成するために必要な授業科目の流れ",null,null,null,null,null,null,null,"・・・・・・・・・・・・",null,13]
[null,null,null,"学習・教育到達目標を達成するために必要な授業科目の流れⅠ",null,null,null,null,null,null,null,"・・・・・",14]
[null,null,null,"学習・教育到達目標を達成するために必要な授業科目の流れⅡ",null,null,null,null,null,null,null,"・・・・・",17]
[null,null,"語学・教養・専門科目一覧",null,null,null,"・・・・・・・・・・・・・・・・・・・・・・・・・・・・・・・・・・・・・・・",null,null,null,null,null,19]
[null,null,null,"語学","・・・・・・・・・・・・・・・・・・・・・・・・・・・・・・・・・・・・・・・・・・・・・・・・・・・・",null,null,null,null,null,null,null,20]
[null,null,null,"教養","・・・・・・・・・・・・・・・・・・・・・・・・・・・・・・・・・・・・・・・・・・・・・・・・・・・・",null,null,null,null,null,null,null,21]
[null,null,null,"専門","・・・・・・・・・・・・・・・・・・・・・・・・・・・・・・・・・・・・・・・・・・・・・・・・・・・・",null,null,null,null,null,null,null,24]
[null,null,null,"科目外","・・・・・・・・・・・・・・・・・・・・・・・・・・・・・・・・・・・・・・・・・・・・・・・・・・・・",null,null,null,null,null,null,null,26]
[null,null,"達成度総合評価報告・学習計画書",null,null,null,null,"・・・・・・・・・・・・・・・・・・・・・・・・・・・・・・・・",null,null,null,null,27]
[null,null,"達成度自己評価表",null,null,"・・・・・・・・・・・・・・・・・・・・・・・・・・・・・・・・・・・・・・・・・・・・・",null,null,null,null,null,null,29]

{"sheet":"達成度評価ｼｰﾄ表紙","index":2,"n_rows":6,"n_cols":4,"rows_kept":6,"cut":false,"hidden":false,"merged":[[6,0,6,14],[5,0,5,2],[1,0,1,14],[0,0,0,14],[2,0,2,14],[3,0,3,14],[4,0,4,14],[5,3,5,14]]}
[]
["【 達成度評価シート 】"]
[]
["令和4年度入学生用"]
[]
[null,null,null,"京都工芸繊維大学　工芸科学部　設計工学域　機械工学課程"]

{"sheet":"教育理念等中表紙","index":3,"n_rows":4,"n_cols":1,"rows_kept":4,"cut":false,"hidden":false,"merged":[[1,0,1,14],[0,0,0,14],[2,0,2,14],[3,0,4,14]]}
[]
["教育理念，卒業時の人物像，学習・教育到達目標"]
[]
["令和4年度入学生用"]

{"sheet":"教育理念・卒業時の人物像","index":4,"n_rows":8,"n_cols":1,"rows_kept":8,"cut":false,"hidden":false,"merged":[[7,0,7,14],[5,0,5,14],[6,0,6,14],[4,0,4,14],[0,0,0,14],[2,0,2,14],[1,0,1,14],[3,0,3,14]]}
[]
["平成14年3月27日制定，平成27年1月29日改訂"]
["【 教育理念 】"]
["　機械工学課程は，近年急速に進歩している科学技術をさらに深く探求し，それらの高度な専門知識を総合的に組み合わせ，我々の実生活に不可欠なさまざまな機械・機器あるいはシステムを実現していくことのできる創造力豊かな人材の育成を目指しています．21世紀に問われているエネルギー問題や地球環境問題のような時代の大きな変化に柔軟に対応でき，限られた資源を用いて素材を開発し，機能や性能を解析し，さらにそれから効率の良いシステムを構築するために，あらゆる科学技術を駆使しながら，知的かつ総合的に学生と教員が解決していくことを使命としています．"]
[]
["平成14年3月27日制定，令和2年1月30日改訂"]
["【卒業時の人物像】"]
["　機械工学課程では，幅広い基礎的知識の上に立った高度な専門性と豊かな創造力を持ち，さらに技術が普遍性を有するかどうかを的確に判断でき，しかも科学技術の発展の方向や時代と社会の変化の動向をいち早く正確に把握することができる優れた先見性，地球的視野に立った行動力，豊かな人間尊重の精神を備えた国際性のある人材．"]

{"sheet":"学習・教育到達目標と基本項目","index":5,"n_rows":43,"n_cols":7,"rows_kept":43,"cut":false,"hidden":false,"merged":[[31,6,32,14],[15,1,15,14],[16,0,16,14],[3,0,3,14],[4,0,4,14],[30,0,30,14],[18,0,18,13],[21,0,21,14],[22,0,22,14],[29,0,29,14],[28,0,28,14],[6,0,6,14],[27,1,27,14],[12,0,12,14],[17,1,17,14],[20,0,20,14],[14,0,14,14],[0,0,0,14],[7,0,7,14],[11,0,11,14],[8,1,8,14],[9,0,9,14],[13,0,13,14],[10,1,10,14],[1,0,1,14],[2,0,2,14],[5,0,5,14],[23,0,23,14],[34,1,34,4],[42,6,46,14],[41,6,41,14],[41,0,46,5],[24,0,24,14],[25,0,25,14],[26,0,26,14],[33,6,40,14],[37,0,37,4],[38,3,38,4],[33,1,33,4],[31,0,31,4],[39,3,40,4],[19,0,19,14],[39,0,40,0],[38,1,38,2],[31,5,40,5],[32,0,32,4],[36,0,36,4]]}
["平成14年3月27日制定，令和2年1月30日改訂"]
["卒業時の人物像に沿った人材を育成するため，以下の学習・教育到達目標を定めています．"]
[]
["【 学習・教育到達目標 】"]
[]
["Ａ. 豊かな教養と地球的視点を備え，技術者の社会的責任を認識できる．"]
["　（１）スポーツや芸術に慣れ親しみ，人間性豊かな思考のできる教養を備える．"]
["　（２）地球的視点で物事を考える素養と能力を有する．"]
[null,"解説 ： ここで言う「地球的視点で物事を考える」とは，「歴史や文化，習慣や風土，あるいは価値観などの多様性を学ぶことで，幸せや豊かさの概念が多岐に渡ることを認識して，物事を考える」という意味である．"]
["　（３） 科学技術の発展とそれが自然環境，生命，社会などに及ぼす効果や影響を理解できる．"]
[null,"解説 ： 技術者の社会に対する責任（技術者倫理）と貢献について理解することも含む．"]
[]
["Ｂ. 幅広い基礎学力と専門知識を備える．"]
["　（１） 数学・物理・情報技術などの基礎学力を有する．"]
["　（２） 伝統的機械工学の専門知識を修得している．"]
[null,"解説 ： ここで言う「伝統的機械工学の専門知識」とは，長年，機械工学の根幹をなしてきた力学と機械設計の知識であり，現代の機械技術者にとっても習得しなければならない基本知識である．"]
["　（３） 幅広い専門知識を応用して，時代や社会の変化と要求に対応した新たな機械システムを構築できる能力を有する．"]
[null,"解説 ： ｢新たな機械システムを構築できる能力｣とは，現在の課題や問題を設定・発見する能力や，これらを解決するための構想力・創造力である．"]
[]
["Ｃ. 国際的に通用する表現力と論理性を備える．"]
["　（１） 国際的な場でのコミュニケーション能力を有する．"]
["　（２） 日本語によって論理的な記述，発表，討論ができる．"]
[]
["Ｄ. 自律的に判断し，問題を解決する能力を有する．"]
["　（１） 継続的に学習し，能力開発を自発的に行うことができる．"]
["　（２） 種々の条件の下で問題解決の可能性を追求し，計画的に目標を達成することができる．"]
["　（３） チームを構成してリーダーシップを発揮できる．"]
[null,"解説 ： ここで言うリーダーシップとは，演習や実習においては，班長としての役目を責任を持って果たすことで，それらの円滑な実施と目的を遂行する能力を，また，カリキュラム外では，他分野の人とチームを構成し，協働してチームの目的を遂行する能力を言う．特に，後者については，自発的学習としてこれを行うことを強く求める．"]
[]
["\n上記の各目標に対して達成度総合評価基準が定められています．この基準を達成するために，達成度評価対象が定められ，その達成度評価方法と評価基準が規定されています．"]
[]
[" 【 基本項目：令和4年度入学生用 】"]
[]
["学籍番号",22123099,null,null,null,null,"・入力項目は，背景色が黄色の部分のみです．\n・『語学』，『教養』，『専門』，『科目外』の各シートの黄色背景色部分を入力して下さい．成績点は，S=30点，A+=25点，A=20点，B+=15点，B=10点，C+=5点，C= 0点です．\n・全てのシートの入力完了後，【 提出書類 】シートの『提出ﾌｧｲﾙの出力』ボタンを押して出力し，出力ファイルをガイダンスでの指示に従って所定の所へ提出して下さい．\n・『提出ﾌｧｲﾙの印刷』ボタンを押すと，【達成度総合評価報告・学習計画書】が印刷されます．これをガイダンスでの指示に従って所定の所へ提出して下さい．また，控えを保存して下さい．\n・『今期の登録単位一覧』ボタンを押すと，登録単位一覧が出力されます．\n・『これまでの取得単位一覧』ボタンを押すと，これまでの取得単位一覧が出力されます．"]
["氏　　名","工繊一郎"]
["区　　分","一般",1,"地域創生Tech"]
["(該当する区分に1を入力)"]
[]
["年　　次",1]
["学　　期","前学期",1,"(該当する学期に1を入力)"]
[null,"後学期"]
[]
[null,null,null,null,null,null,"・卒業要件が満足されれば，達成率は全て100%になります．\n・換算成績点は，必要最小限の単位を全てSの成績で取得し，単位外の項目も全て満足すると100点となるように設計されています．なお，必修科目は開講年次に取得することも条件です．\n・達成率と換算成績点から算出される総合評価点が６０点以上で合格となります．"]

{"sheet":"達成度総合評価基準表紙","index":6,"n_rows":4,"n_cols":1,"rows_kept":4,"cut":false,"hidden":false,"merged":[[4,0,4,14],[1,0,1,14],[0,0,0,14],[2,0,2,14],[3,0,3,14]]}
[]
["達成度総合評価基準"]
[]
["令和4年度入学生用"]

{"sheet":"達成度総合評価基準","index":7,"n_rows":91,"n_cols":4,"rows_kept":91,"cut":false,"hidden":false,"merged":[[8,3,11,3],[22,3,23,3],[69,0,69,3],[35,0,35,3],[37,0,37,3],[16,2,18,2],[21,0,21,3],[63,0,63,3],[57,0,57,3],[53,2,54,2],[27,0,27,3],[47,0,47,3],[48,0,48,3],[46,0,46,3],[28,0,28,3],[0,0,0,3],[2,0,2,3],[1,0,1,3],[3,0,3,3],[4,0,4,3],[6,0,6,3],[5,0,5,3],[70,0,70,3],[72,3,74,3],[75,0,75,3],[7,0,7,3],[20,0,20,3],[23,1,24,1],[12,0,12,3],[13,0,13,3],[14,0,14,3],[15,3,18,3],[19,0,19,3],[9,2,11,2],[23,2,25,2],[29,0,29,3],[26,0,26,3],[36,0,36,3],[59,0,59,3],[39,3,45,3],[62,0,62,3],[31,3,34,3],[58,0,58,3],[50,0,51,0],[60,3,61,3],[50,3,55,3],[53,0,55,0],[88,1,89,1],[85,3,90,3],[86,2,90,2],[65,2,67,2],[66,1,67,1],[73,2,74,2],[78,2,81,2],[68,0,68,3],[71,0,71,3],[79,0,80,0],[84,0,84,3],[83,0,83,3],[76,0,76,3],[77,3,81,3],[82,0,82,3]]}
["平成15年10月2日制定，令和4年3月31日改訂"]
["【 達成度総合評価基準 】（令和3年度入学生用）　　　　　　　　　　　　"]
[]
["前ページの学習・教育到達目標で解りにくい点について解説するともに，達成度を自己評価するための達成度総合評価基準を定めています．また，達成度評価対象欄に《 》が付けられている科目は，複数の学習・教育到達目標に関係する科目の中で「達成度評価方法と評価基準」に単位取得の前提となる評価項目が定められているものです．\n【 】内の記述はそれぞれの学習・教育到達目標の略称です．"]
[]
["Ａ． 豊かな教養と地球的視点を備え，技術者の社会的責任を認識できる．"]
[]
["（1）スポーツや芸術に慣れ親しみ，人間性豊かな思考のできる教養を備える．【 教養 】"]
["達成度評価対象","達成度評価方法と評価基準","総合評価方法及び評価基準"]
["基本教養科目の｢人と社会｣に属する科目","左記科目より２単位取得","総合評価点が６０点以上で合格とする．"]
["基本教養科目の｢人と文化｣に属する科目","左記科目より２単位取得"]
["基本教養科目の｢人と自然｣に属する科目","左記科目より２単位取得"]
[]
["（2）地球的視点で物事を考える素養と能力を有する．【 視点 】"]
["解説 ： ここで言う「地球的視点で物事を考える」とは，「歴史や文化，習慣や風土，あるいは価値観などの多様性を学ぶことで，幸せや豊かさの概念が多岐に渡ることを認識して，物事を考える」という意味である．"]
["達成度評価対象","達成度評価方法と評価基準","総合評価方法及び評価基準"]
["工芸科学教養科目","左記科目より８単位以上取得","総合評価点が６０点以上で合格とする．"]
["人間教養科目","上記で取得した単位を含み22単位以上取得"]
["《エンジニアのためのリテラシー》","与えられたテーマを地球的視点から考えて調査，考察し，プレゼンテーション資料を作成する課題に合格して，単位を取得すること．"]
[]
["（3）科学技術の発展とそれが自然環境，生命，社会などに及ぼす効果や影響を理解できる．【 倫理 】"]
["解説 ： 技術者の社会に対する責任（技術者倫理）と貢献について理解することも含む．"]
["達成度評価対象","達成度評価方法と評価基準","総合評価方法及び評価基準"]
["《機械工学実験Ⅰ》","技術者倫理に対する講義を受けた後，少人数の班に分かれ，具体的に与えられる事例に基づいて技術者の社会に対する責任と貢献に関して討論して考えをまとめてレポートを提出し，これに合格して，単位を取得すること．","総合評価点が６０点以上で合格とする．"]
["《機械工学実験Ⅱ》"]
["環境安全マネジメント活動","環境安全マネジメント講習に出席し，少なくとも1年間環境安全マネジメントプログラム実行計画書にしたがって活動していること．"]
[]
["Ｂ. 幅広い基礎学力と専門知識を備える．"]
[]
["（１） 数学・物理・情報技術などの基礎学力を有する．【 基礎 】"]
[null,"達成度評価対象","達成度評価方法と評価基準","総合評価方法及び\n評価基準"]
["（ａ）数学の基礎を習得","基礎解析Ⅰ，線形代数学Ⅰ，統計数理","左記科目の単位取得","総合評価点が６０点以上で合格とする．"]
["（ｂ）物理学の基礎を習得","工業力学Ⅰ，工業力学Ⅱ，物理学実験法及び基礎実験","左記科目の単位取得"]
["（ｃ）情報技術の基礎を習得","データサイエンス","左記科目の単位取得"]
["（ｄ）自然科学の基礎を習得","専門基礎科目","上記(a)と(b)に記載された必修科目と選択必修科目を含め24単位以上を取得"]
[]
["（２） 伝統的機械工学の専門知識を修得している．【 専門 】"]
["解説 ： ここで言う「伝統的機械工学の専門知識」とは，長年，機械工学の根幹をなしてきた力学と機械設計の知識であり，現代の機械技術者にとっても習得しなければならない基本知識である．"]
[null,"達成度評価対象","達成度評価方法と評価基準","総合評価方法及び\n評価基準"]
["（ａ）材料力学の知識を習得","材料力学Ⅰ及び演習，材料力学Ⅱ及び演習","左記科目の単位取得","総合評価点が６０点以上で合格とする．"]
["（ｂ）熱力学の知識を習得","熱力学Ⅰ及び演習，熱力学Ⅱ及び演習","左記科目の単位取得"]
["（ｃ）流体力学の知識を習得","流体力学Ⅰ及び演習，流体力学Ⅱ及び演習","左記科目の単位取得"]
["（ｄ）機械力学の知識を習得","機械力学Ⅰ及び演習，機械力学Ⅱ及び演習","左記科目の単位取得"]
["（ｅ）設計法の知識を習得","《創造設計製図演習》","左記科目の単位取得"]
["（ｆ）製図法と規則を習得","機械製図法Ⅰ，機械製図法Ⅱ","左記科目の単位取得"]
["（ｇ）加工法の知識を習得","《機械加工法及び実習》","左記科目の単位取得"]
[]
["（３） 幅広い専門知識を応用して，時代や社会の変化と要求に対応した新たな機械システムを構築できる能力を有する．【 開発 】"]
["解説 ： ｢新たな機械システムを構築できる能力｣とは，現在の課題や問題を設定・発見する能力や，これらを解決するための構想力・創造力である．"]
[null,"達成度評価対象","達成度評価方法と評価基準","総合評価方法及び\n評価基準"]
["（ａ）機械システムに関する幅広い専門知識を習得","課程専門科目に属する選択科目","20単位以上取得","総合評価点が６０点以上で合格とする．"]
[null,"専門教育科目","必修科目，選択必修科目を含めて90単位以上を取得"]
["（ｂ）物づくりに関する最新の状況を知っている．","機械工学課程対象の工場見学，学術講演会及びインターンシップA，インターンシップB，ものづくりインターンシップⅠ，ものづくりインターンシップⅡ","工場見学，学術講演会のいずれかに参加するか，あるいはインターンシップA，インターンシップB，ものづくりインターンシップⅠ，ものづくりインターンシップⅡ，ものづくりインターンシップⅢのいずれかの単位を取得すること．"]
["（ｃ）実験等を遂行して，その結果を解析し，それを工学的に考察する能力を有している．","《機械工学実験Ⅰ》","全てのテーマについて実験を行って，それらの結果を工学的に考察した報告書を作成する課題に合格して，単位を取得すること．"]
[null,"《機械工学実験Ⅱ》"]
[null,"《卒業研究》","卒業研究の評価項目の1つである｢実験等を遂行して，その結果を解析し，それを工学的に考察する能力｣に対する評価項目に合格して，単位を取得すること．"]
[]
["Ｃ． 国際的に通用する表現力と論理性を備える．"]
[]
["（1）国際的な場でのコミュニケーション能力を有する．【 国際 】"]
["達成度評価対象","達成度評価方法と評価基準","総合評価方法及び評価基準"]
["言語教育科目","左記科目より必修6単位を含めて12単位以上を取得","総合評価点が６０点以上で合格とする．"]
[]
["（２） 日本語によって論理的な記述，発表，討論ができる．【 論理 】"]
["達成度評価対象","達成度評価方法と評価基準","総合評価方法及び評価基準"]
["《エンジニアのためのリテラシー》","論理的なプレゼンテーションと活発な討論を行う課題に合格して，単位を取得すること．","総合評価点が６０点以上で合格とする．"]
["《機械工学実験Ⅰ》","全ての実験テーマの報告書について，論理的に記述されているかどうかという評価項目に合格して，単位を取得すること．"]
["《機械工学実験Ⅱ》"]
[]
["Ｄ． 自律的に判断し，問題を解決する能力を有する．"]
[]
["（１） 継続的に学習し，能力開発を自発的に行うことができる．【 自発 】"]
["達成度評価対象","達成度評価方法と評価基準","総合評価方法及び評価基準"]
["全科目","卒業までの学習計画を立て，134単位以上を取得","総合評価点が６０点以上で合格とする．"]
["達成度総合評価報告・学習計画書","学期ごとに達成度総合評価報告・学習計画書を提出"]
[]
["（２） 種々の条件の下で問題解決の可能性を追求し，計画的に目標を達成することができる．【 計画 】"]
["達成度評価対象","達成度評価方法と評価基準","総合評価方法及び評価基準"]
["《創造設計製図演習》","設定された制約条件の下で，自らのアイデアに基づいて新たな機械を構想・設計し，計画的に作業を進め，設計報告書・提出物を定められた期日までに提出して，単位を取得すること．","総合評価点が６０点以上で合格とする．"]
["《卒業研究》","教員の指導の下で年間４５０時間以上の研究を実施"]
[null,"卒業研究の評価項目の１つである｢種々の条件の下で問題解決の可能性を追求し，計画的に目標を達成することができる能力｣に対する評価項目に合格して，単位を取得すること．"]
["卒業研究記録","卒業研究に関する記録を作成"]
[]
["（３） チームを構成してリーダーシップを発揮できる．【 ﾘｰﾀﾞｰ】"]
["解説 ： ここで言うリーダーシップとは，演習や実習においては，班長としての役目を責任を持って果たすことで，それらの円滑な実施と目的を遂行する能力を，また，カリキュラム外では，他分野の人とチームを構成し，協働してチームの目的を遂行する能力を言う．特に，後者については，自発的学習としてこれを行うことを強く求める．"]
["達成度評価対象","達成度評価方法と評価基準","総合評価方法及び評価基準"]
["工芸科学教養科目の「リーダーシップと経営戦略」に属する科目","2単位取得","総合評価点が６０点以上で合格とする．"]
["《機械加工法及び実習》","少なくとも１回，班長として実習の円滑な実施に務め，その際に生じた問題点などを考察した班長レポートを提出し，これに合格して，単位を取得すること．"]
["《機械工学実験Ⅰ》","少なくとも１回，班長として実験の円滑な実施とディスカッションの活発化に務め，その際に生じた問題点などを考察した班長レポートを提出し，これに合格して，単位を取得すること．"]
["《機械工学実験Ⅱ》"]
["《創造設計製図演習》","自身が責任を持って設計，製作した部分を，｢最終報告書｣において明らかにし，チームの円滑な運営がなされたかどうか，また，それに寄与したかどうかという評価項目に合格して，単位を取得すること．"]

{"sheet":"授業科目の流れ中表紙","index":8,"n_rows":4,"n_cols":1,"rows_kept":4,"cut":false,"hidden":false,"merged":[[4,0,4,14],[1,0,1,14],[0,0,0,14],[2,0,2,14],[3,0,3,14]]}
[]
["学習・教育到達目標を達成するために必要な授業科目の流れ"]
[]
["令和4年度入学生用"]

{"sheet":"授業科目の流れⅠ","index":9,"n_rows":133,"n_cols":25,"rows_kept":133,"cut":false,"hidden":false,"merged":[[55,0,75,0],[55,1,57,1],[7,1,11,1],[12,1,14,1],[15,1,17,1],[18,1,50,1],[52,0,54,1],[58,1,60,1],[64,1,66,1],[7,0,50,0],[61,1,63,1],[76,1,100,1],[103,2,103,4],[103,23,103,25],[103,17,103,19],[103,20,103,22],[103,8,103,10],[103,11,103,13],[103,14,103,16],[103,5,103,7],[101,2,101,25],[102,2,102,7],[102,8,102,13],[102,14,102,19],[102,20,102,25],[128,3,128,24],[127,0,133,1],[112,21,112,24],[118,3,118,24],[120,3,120,24],[114,0,116,1],[115,21,115,24],[104,0,113,0],[117,0,121,1],[111,1,113,1],[6,8,6,10],[6,11,6,13],[125,21,125,24],[123,21,123,24],[122,0,126,1],[104,1,110,1],[76,0,100,0],[101,0,103,1],[67,1,69,1],[70,1,72,1],[73,1,75,1],[53,2,53,7],[54,14,54,16],[54,17,54,19],[54,2,54,4],[54,5,54,7],[0,0,0,24],[4,0,6,1],[5,2,5,7],[5,8,5,13],[4,2,4,25],[3,18,3,25],[6,20,6,22],[5,14,5,19],[6,17,6,19],[5,20,5,25],[1,0,1,25],[2,0,2,25],[6,14,6,16],[6,23,6,25],[6,2,6,4],[6,5,6,7],[54,11,54,13],[52,2,52,25],[54,20,54,22],[54,23,54,25],[53,8,53,13],[53,14,53,19],[53,20,53,25],[54,8,54,10]]}
["学習・教育到達目標を達成するために必要な授業科目の流れⅠ"]
[]
["(注)学習・教育到達目標A(1)【 教養 】，A(2)【 視点 】，A(3)【 倫理 】，C(1)【 国際 】と授業科目の関連性については，達成度評価シートの授業科目一覧を参照すること．"]
[null,null,null,null,null,null,null,null,null,null,null,null,null,null,null,null,null,null,"◎：関連の深い科目　　○：関連のある科目"]
["学習・教育到達目標",null,"授　　業　　科　　目　　名"]
[null,null,"1　年",null,null,null,null,null,"2　年",null,null,null,null,null,"3　年",null,null,null,null,null,"4　年"]
[null,null,"前 期",null,null,"後 期",null,null,"前 期",null,null,"後 期",null,null,"前 期",null,null,"後 期",null,null,"前 期",null,null,"後 期"]
["B(1)\n【 基礎 】","(a)"]
[null,null,null,"基礎解析Ⅰ(◎)",null,null,null,null,null,"統計数理(◎)"]
[]
[null,null,null,"線形代数学Ⅰ(◎)"]
[]
[null,"(b)"]
[null,null,null,"工業力学Ⅰ(◎)",null,null,"工業力学Ⅱ(◎)",null,null,null,null,null,"物理学実験法\n及び基礎実験(◎)"]
[]
[null,"(c)"]
[null,null,null,null,null,null,null,null,null,null,null,null,null,null,null,"データサイエンス\n(◎)"]
[]
[null,"(d)"]
[null,null,null,null,null,null,null,null,null,null,null,null,null,null,null,null,null,null,null,null,null,null,null,null,"数理応用統計(○)"]
[]
[null,null,null,null,null,null,"基礎解析Ⅱ(○)",null,null,"解析学Ⅰ(○)",null,null,"解析学Ⅱ(○)",null,null,"応用数理(○)",null,null,null,null,null,"数理応用演習(○)"]
[]
[null,null,null,"数学演習Ⅰ(○)",null,null,"数学演習Ⅱ(○)",null,null,"応用解析(○)",null,null,"数理解析(○)",null,null,null,null,null,null,null,null,null,null,null,"数理応用解析(○)"]
[]
[null,null,null,null,null,null,"線形代数学Ⅱ(○)",null,null,null,null,null,"応用幾何(○)",null,null,null,null,null,null,null,null,null,null,null,"数理応用幾何(○)"]
[]
[null,null,null,null,null,null,null,null,null,null,null,null,null,null,null,null,null,null,null,null,null,null,null,null,"数理応用代数(○)"]
[]
[null,null,null,"物理学Ⅰ(○)",null,null,null,null,null,"統計熱力学(○)",null,null,"量子力学(○)"]
[]
[null,null,null,null,null,null,"物理学Ⅱ(○)"]
[]
[null,null,null,null,null,null,null,null,null,null,null,null,null,null,null,"インターンシップ\nＡ, B(○)"]
[]
[null,null,null,null,null,null,null,null,null,"アントレプレナーシップ概論(○)"]
[]
[null,null,null,null,null,null,null,null,null,"知的財産概論Ⅰ(○)",null,null,"知的財産概論Ⅱ(○)",null,null,null,null,null,"知的財産演習(○)"]
[]
[null,null,null,null,null,null,null,null,null,"特許法・実用新案法Ⅰ(○)",null,null,"特許法・実用新案法Ⅱ(○)"]
[]
[null,null,null,null,null,null,null,null,null,"民法概論Ⅰ(○)",null,null,"民法概論Ⅱ(○)"]
[]
[null,null,null,null,null,null,null,null,null,null,null,null,null,null,null,null,null,null,"繊維科学概論(○)"]
[]
[null,null,null,null,null,null,null,null,null,null,null,null,null,null,null,null,null,null,"複合材料学(○)"]
[]
[null,null,null,null,null,null,null,null,null,null,null,null,null,null,null,null,null,null,"先端複合材料学(○)"]
[]
[null,null,null,null,null,null,null,null,null,null,null,null,null,null,null,null,null,null,"複合材料基礎実験(○)",null,null,"複合材料ものづくり実験(○)"]
[]
[]
["学習・教育到達目標",null,"授　　業　　科　　目　　名"]
[null,null,"1　年",null,null,null,null,null,"2　年",null,null,null,null,null,"3　年",null,null,null,null,null,"4　年"]
[null,null,"前 期",null,null,"後 期",null,null,"前 期",null,null,"後 期",null,null,"前 期",null,null,"後 期",null,null,"前 期",null,null,"後 期"]
["B(2)\n【 専門 】","(a)"]
[null,null,null,null,null,null,"材料力学Ⅰ\n及び演習(◎)",null,null,"材料力学Ⅱ\n及び演習(◎)"]
[]
[null,"(b)"]
[null,null,null,null,null,null,null,null,null,"熱力学Ⅰ\n及び演習(◎)",null,null,"熱力学Ⅱ\n及び演習(◎)"]
[]
[null,"(c)"]
[null,null,null,null,null,null,null,null,null,null,null,null,"流体力学Ⅰ\n及び演習(◎)",null,null,"流体力学Ⅱ\n及び演習(◎)"]
[]
[null,"(d)"]
[null,null,null,null,null,null,null,null,null,"機械力学Ⅰ\n及び演習(◎)",null,null,"機械力学Ⅱ\n及び演習(◎)"]
[]
[null,"(e)"]
[null,null,null,null,null,null,null,null,null,null,null,null,null,null,null,null,null,null,"創造設計製図演習(◎)"]
[]
[null,"(f)"]
[null,null,null,null,null,null,null,null,null,"機械製図法Ⅰ(◎)",null,null,"機械製図法Ⅱ(◎)"]
[]
[null,"(g)"]
[null,null,null,null,null,null,null,null,null,"機械加工法\n及び実習(◎)"]
[]
["B(3)\n 【 開発 】","(a)"]
[null,null,null,null,null,null,"計測基礎学(○)",null,null,null,null,null,null,null,null,"工業計測法(○)"]
[]
[null,null,null,null,null,null,null,null,null,null,null,null,null,null,null,null,null,null,null,null,null,"ロボティクス(○)"]
[]
[null,null,null,null,null,null,null,null,null,null,null,null,"システム制御\n理論(○)",null,null,null,null,null,"最適制御\nシステム(○)"]
[]
[null,null,null,null,null,null,"材料加工\nプロセス(○)",null,null,null,null,null,null,null,null,"切削・研削\n加工学(○)"]
[]
[null,null,null,null,null,null,null,null,null,null,null,null,null,null,null,null,null,null,"特殊加工学(○)"]
[]
[null,null,null,null,null,null,null,null,null,null,null,null,null,null,null,null,null,null,"塑性加工学(○)"]
[]
[null,null,null,null,null,null,null,null,null,null,null,null,null,null,null,"塑性力学(○)"]
[]
[null,null,null,null,null,null,null,null,null,null,null,null,"ｺﾝﾋﾟｭｰﾀｼﾐｭﾚｰｼｮﾝ\n基礎学(○)",null,null,"計算力学(○)"]
[]
[null,null,null,null,null,null,null,null,null,null,null,null,"機械設計学(○)",null,null,"応用機械設計(○)"]
[]
[null,null,null,null,null,null,null,null,null,null,null,null,null,null,null,"熱エネルギー\n輸送現象(○)"]
[]
[null,null,null,null,null,null,null,null,null,null,null,null,null,null,null,null,null,null,null,null,null,null,null,null,"計画工学(○)"]
[]
[null,null,null,null,null,null,null,null,null,null,null,null,null,null,null,null,null,null,"地域創生課題セミナーⅠ(○)",null,null,"地域創生課題セミナーⅡ(○)",null,null,"卒業論文(○)"]
[]
["学習・教育到達目標",null,"授　　業　　科　　目　　名"]
[null,null,"1　年",null,null,null,null,null,"2　年",null,null,null,null,null,"3　年",null,null,null,null,null,"4　年"]
[null,null,"前 期",null,null,"後 期",null,null,"前 期",null,null,"後 期",null,null,"前 期",null,null,"後 期",null,null,"前 期",null,null,"後 期"]
["B(3)\n【 開発 】","(b)"]
[null,null,null,null,null,null,null,null,null,null,null,null,null,null,null,"インターンシップ\nＡ, B(○)",null,null,"ものづくりインターンシップⅠ(○)",null,null,"ものづくりインターンシップⅡ(○)"]
[]
[null,null,null,null,null,null,null,null,null,null,null,null,null,null,null,null,null,null,"(工場見学）"]
[]
[null,null,null,null,null,null,null,null,null,null,null,null,null,null,null,null,null,null,"(学術講演会）"]
[]
[null,"(c)"]
[null,null,null,null,null,null,null,null,null,null,null,null,null,null,null,"機械工学実験\nⅠ(◎)",null,null,"機械工学実験\nⅡ(◎)",null,null,"卒業研究(◎)"]
[]
["C(2)\n【 論理 】"]
[null,null,null,"エンジニアのため\nのリテラシー(◎)",null,null,null,null,null,null,null,null,null,null,null,"機械工学実験\nⅠ(◎)",null,null,"機械工学実験\nⅡ(◎)"]
[]
["D(1)\n【 自発 】"]
[null,null,null,"全科目(○)"]
[]
[null,null,null,"（達成度総合評価報告・学習計画書）"]
[]
["D(2)\n【 計画 】"]
[null,null,null,null,null,null,null,null,null,null,null,null,null,null,null,null,null,null,"創造設計製図演習(◎)",null,null,"卒業研究(◎)"]
[]
[null,null,null,null,null,null,null,null,null,null,null,null,null,null,null,null,null,null,null,null,null,"（卒業研究記録)"]
[]
["D(3)\n【 ﾘｰﾀﾞｰ 】"]
[null,null,null,"工芸科学教養科目の「リーダーシップと経営戦略」に属する科目(○)"]
[]
[null,null,null,null,null,null,null,null,null,"機械加工法\n及び実習(◎)",null,null,null,null,null,null,null,null,"創造設計製図演習(◎)"]
[]
[null,null,null,null,null,null,null,null,null,null,null,null,null,null,null,"機械工学実験\nⅠ(◎)",null,null,"機械工学実験\nⅡ(◎)"]

{"sheet":"授業科目の流れⅡ","index":10,"n_rows":75,"n_cols":19,"rows_kept":75,"cut":false,"hidden":false,"merged":[[62,0,62,2],[0,0,0,19],[7,12,7,14],[22,0,22,2],[26,0,26,2],[34,0,34,2],[40,0,40,2],[51,0,51,2],[2,0,2,14],[2,16,3,16],[2,18,3,18],[5,0,5,2],[6,12,6,14]]}
["学習・教育到達目標を達成するために必要な授業科目の流れⅡ"]
[]
["学　部",null,null,null,null,null,null,null,null,null,null,null,null,null,null,null,"修士課程\n(MP，MD)",null,"博士課程"]
["1年前期",null,"1年後期",null,"2年前期",null,"2年後期",null,"3年前期",null,"3年後期",null,"4年前期",null,"4年後期"]
[null,null,null,null,null,null,null,null,null,null,null,null,null,null,null,null,"MP：機械物理学専攻"]
["実習・設計関連科目",null,null,null,null,null,null,null,null,null,null,null,null,null,null,null,"MD：機械設計学専攻"]
[null,null,"【実験・実習系】",null,null,null,null,null,"機械工学実験Ⅰ",null,"機械工学実験Ⅱ",null,"卒業研究（一般）",null,null,null,"(MP, MD)"]
[null,null,null,null,"機械加工法及び実習",null,"物理学実験法及び基礎実験",null,null,null,null,null,"卒業プロジェクト（地域）",null,null,null,"特別実験及び演習",null,"特別演習"]
[null,null,null,null,null,null,null,null,"機械工学実験Ⅱ",null,"機械工学実験Ⅰ",null,null,null,null,null,"特別課題実験及び演習",null,"研究指導"]
[null,null,null,null,null,null,null,null,null,null,null,null,null,null,"卒業論文",null,"特別研究"]
[null,null,null,null,null,null,null,null,"インターンシップA，B",null,"ものづくりｲﾝﾀｰﾝｼｯﾌﾟⅠ（地域）",null,"ものづくりｲﾝﾀｰﾝｼｯﾌﾟⅡ（地域）"]
["【専門導入科目】",null,"【設計・製図系】"]
["ｴﾝｼﾞﾆｱのためのﾘﾃﾗｼｰ",null,null,null,"機械製図法Ⅰ",null,"機械製図法Ⅱ",null,null,null,"創造設計製図演習（一般）"]
[null,null,null,null,null,null,null,null,null,null,"地域創生課題ｾﾐﾅｰⅠ（地域）",null,"地域創生課題ｾﾐﾅｰⅡ（地域）",null,null,null,"(MD)"]
[null,null,null,null,null,null,null,null,null,null,null,null,null,null,null,null,"伝動装置設計論"]
[null,null,null,null,null,null,"機械設計学",null,"応用機械設計",null,null,null,null,null,null,null,"(MD)",null,"機素強度評価学"]
[null,null,null,null,null,null,null,null,null,null,null,null,null,null,null,null,"機械システム安全設計論"]
["【工業力学系】",null,null,null,null,null,null,null,null,null,null,null,null,null,null,null,"(MP)"]
["工業力学Ⅰ",null,"工業力学Ⅱ",null,null,null,null,null,null,null,null,null,null,null,null,null,"工業解析力学"]
[null,null,null,null,null,null,"【シミュレーション系】",null,null,null,null,null,null,null,null,null,"(MP)"]
[null,null,null,null,null,null,"ｺﾝﾋﾟｭｰﾀｰｼﾐｭﾚｰｼｮﾝ基礎学",null,"データサイエンス",null,null,null,null,null,null,null,"計算流体力学"]
[null,null,null,null,null,null,null,null,null,null,null,null,null,null,null,null,"(MP)",null,"計算流体論"]
["流体力学関連科目",null,null,null,null,null,null,null,null,null,null,null,null,null,null,null,"流体エネルギー変換論"]
[null,null,null,null,null,null,null,null,null,null,null,null,null,null,null,null,"(MP)"]
[null,null,null,null,null,null,"流体力学Ⅰ及び演習",null,"流体力学Ⅱ及び演習",null,null,null,null,null,null,null,"気体分子運動論"]
[null,null,null,null,null,null,null,null,null,null,null,null,null,null,null,null,"(MP)"]
["熱力学関連科目",null,null,null,null,null,null,null,null,null,null,null,null,null,null,null,"熱ｴﾈﾙｷﾞｰ変換工学"]
[null,null,null,null,null,null,null,null,null,null,null,null,null,null,null,null,"(MP)"]
[null,null,null,null,"熱力学Ⅰ及び演習",null,"熱力学Ⅱ及び演習",null,null,null,null,null,null,null,null,null,"反応性熱流体力学"]
[null,null,null,null,null,null,null,null,null,null,null,null,null,null,null,null,"(MP)",null,"エネルギシステム論"]
[null,null,null,null,null,null,null,null,"熱ｴﾈﾙｷﾞｰ輸送現象",null,null,null,null,null,null,null,"輸送現象制御"]
[null,null,null,null,null,null,null,null,null,null,null,null,null,null,null,null,"(MP)"]
[null,null,null,null,null,null,null,null,null,null,null,null,null,null,null,null,"熱伝達論"]
[null,null,null,null,null,null,null,null,null,null,null,null,null,null,null,null,"(MD)"]
["材料力学関連科目",null,null,null,"工業材料学",null,null,null,"材料強度学",null,null,null,null,null,null,null,"先端工業材料学"]
[null,null,null,null,null,null,null,null,null,null,null,null,null,null,null,null,"(MP)",null,"機械材料強度論"]
[null,null,null,null,null,null,null,null,null,null,null,null,null,null,null,null,"数値固体力学"]
[null,null,"材料力学Ⅰ及び演習",null,"材料力学Ⅱ及び演習",null,"機械構造解析学",null,null,null,null,null,null,null,null,null,"(MP)"]
[null,null,null,null,null,null,null,null,null,null,null,null,null,null,null,null,"理論応力解析学",null,"機素強度評価学"]
[null,null,null,null,null,null,null,null,"塑性力学",null,null,null,null,null,null,null,"(MD)"]
["材料加工関連科目"]
[null,null,null,null,null,null,null,null,null,null,"塑性加工学",null,null,null,null,null,"成形限界設計論"]
[null,null,null,null,null,null,null,null,null,null,null,null,null,null,null,null,"(MD)"]
[null,null,null,null,"切削・研削加工学",null,null,null,"特殊加工学",null,null,null,null,null,null,null,"先端材料加工学",null,"機械材料加工論"]
[null,null,null,null,null,null,null,null,null,null,null,null,null,null,null,null,"(MD)"]
[null,null,null,null,null,null,null,null,null,null,null,null,null,null,null,null,"応用機械加工学"]
[null,null,null,null,null,null,null,null,null,null,null,null,null,null,null,null,"(MD)"]
[null,null,null,null,null,null,null,null,null,null,null,null,null,null,null,null,"生産システム論"]
[null,null,null,null,null,null,null,null,null,null,"計画工学",null,null,null,null,null,"(MD)"]
[null,null,null,null,null,null,null,null,null,null,null,null,null,null,null,null,"最適化理論"]
[null,null,null,null,null,null,null,null,null,null,null,null,null,null,null,null,"(MP)"]
["機械力学関連科目",null,null,null,null,null,null,null,null,null,null,null,null,null,null,null,"知的構造システム学"]
[null,null,null,null,null,null,null,null,null,null,null,null,null,null,null,null,"(MD)",null,"振動力学"]
[null,null,null,null,"機械力学Ⅰ及び演習",null,"機械力学Ⅱ及び演習",null,null,null,null,null,null,null,null,null,"非線形動力学"]
[null,null,null,null,null,null,null,null,null,null,null,null,null,null,null,null,"(MD)"]
[null,null,null,null,null,null,"システム制御理論",null,null,null,"最適制御システム",null,null,null,null,null,"確率応用システム論",null,"システム制御論"]
[null,null,null,null,null,null,null,null,null,null,null,null,null,null,null,null,"(MD)"]
[null,null,null,null,null,null,null,null,null,null,null,null,"ロボティクス",null,null,null,"ロボット制御論"]
[null,null,null,null,null,null,null,null,null,null,null,null,null,null,null,null,"(MD)"]
[null,null,"計測基礎学",null,null,null,null,null,"工業計測法",null,null,null,null,null,null,null,"光・画像計測論",null,"エネルギシステム論"]
[null,null,null,null,null,null,null,null,null,null,null,null,null,null,null,null,"(MD)"]
[null,null,null,null,null,null,null,null,null,null,null,null,null,null,null,null,"先端工業計測論"]
["数学・物理学科目"]
[]
["基礎解析Ⅰ",null,"基礎解析Ⅱ",null,"解析学Ⅰ",null,"解析学Ⅱ",null,"応用数理",null,null,null,"数理応用演習"]
[]
["数学演習Ⅰ",null,"数学演習Ⅱ",null,"応用解析",null,"数理解析",null,null,null,null,null,null,null,"数理応用解析",null,null,null,"必修科目"]
[null,null,null,null,null,null,null,null,null,null,null,null,null,null,"数理応用代数"]
["線形代数学Ⅰ",null,"線形代数学Ⅱ",null,null,null,"応用幾何",null,null,null,null,null,null,null,"数理応用幾何",null,null,null,"科目"]
[]
[null,null,null,null,"統計数理",null,null,null,null,null,null,null,null,null,"データサイエンスの数理",null,null,null,"MP：Mechanophysics"]
[null,null,null,null,null,null,null,null,null,null,null,null,null,null,null,null,null,null,"MD：Mechanodesign"]
["物理学Ⅰ",null,null,null,"統計熱力学",null,"量子力学"]
[]
[null,null,"物理学Ⅱ",null,null,null,"物理学実験法及び基礎実験"]

{"sheet":"語学・教養・専門科目一覧中表紙","index":11,"n_rows":4,"n_cols":1,"rows_kept":4,"cut":false,"hidden":false,"merged":[[4,0,4,14],[1,0,1,14],[0,0,0,14],[2,0,2,14],[3,0,3,14]]}
[]
["語学・教養・専門科目一覧"]
[]
["令和4年度入学生用"]

{"sheet":"語学","index":12,"n_rows":48,"n_cols":21,"rows_kept":48,"cut":false,"hidden":false,"merged":[[0,0,0,20],[1,2,3,2],[1,3,3,3],[1,4,3,4],[2,20,3,20],[1,6,1,16],[2,12,2,13],[2,17,3,17],[1,5,3,5],[2,18,3,18],[1,0,3,1],[1,17,1,19],[2,6,2,8],[2,14,2,16],[47,0,47,1],[47,2,47,7],[47,8,47,20],[2,19,3,19],[2,9,2,11],[46,0,46,20],[4,0,45,1]]}
["　　【 語学 】"]
["区分",null,"授業科目名","単位数","必須、選択などの別","学年・学期","学習・教育到達目標に対する関与の程度",null,null,null,null,null,null,null,null,null,null,"これまでの取得単位",null,null,"今期の目標"]
[null,null,null,null,null,null,"A",null,null,"B",null,null,"C",null,"D",null,null,"取得科目の単位数を入力","取得年次","成績点\nS=30点\nA+=25点, A=20点\nB+=15点, B=10点\nC+=5点, C= 0点","取得目標科目の単位数を入力"]
[null,null,null,null,null,null,"(1)","(2)","(3)","(1)","(2)","(3)","(1)","(2)","(1)","(2)","(3)"]
["言語教育\n科目",null,"Interactive English A",1,"必修","１・前",null,null,null,null,null,null,"◎",null,"○",null,null,1,1,20]
[null,null,"Interactive English B",1,"必修","１・後",null,null,null,null,null,null,"◎",null,"○",null,null,1,1,20]
[null,null,"Career English Basic",1,"必修","1・前",null,null,null,null,null,null,"◎",null,"○",null,null,1,1,20]
[null,null,"Academic English",1,"必修","1・後",null,null,null,null,null,null,"◎",null,"○",null,null,1,1,20]
[null,null,"Career English Intermediate",1,"必修","２・前\n２・後\n３・前",null,null,null,null,null,null,"◎",null,"○",null,null,null,null,null,1]
[null,null,"Career English Advanced",1,"必修","２・前\n２・後\n３・前\n３・後",null,null,null,null,null,null,"◎",null,"○",null,null,null,null,null,1]
[null,null,"Active English CLIL",1,"選択","２・前\n２・後",null,null,null,null,null,null,"○",null,"○",null,null,null,null,null,1]
[null,null,"Active English Listening & Speaking Ⅰ",1,"選択","２・前\n２・後",null,null,null,null,null,null,"○",null,"○",null,null,null,null,null,1]
[null,null,"Active English Listening & Speaking Ⅱ",1,"選択","２・前\n２・後",null,null,null,null,null,null,"○",null,"○",null,null,null,null,null,1]
[null,null,"Active English Reading Ⅰ",1,"選択","２・前\n２・後",null,null,null,null,null,null,"○",null,"○",null,null," "," ",null,1]
[null,null,"Active English Reading Ⅱ",1,"選択","２・後",null,null,null,null,null,null,"○",null,"○",null,null," "," ",null,1]
[null,null,"Active English Writing Ⅰ",1,"選択","２・前\n２・後",null,null,null,null,null,null,"○",null,"○"]
[null,null,"Active English Writing Ⅱ",1,"選択","２・前\n２・後",null,null,null,null,null,null,"○",null,"○"]
[null,null,"Active English Project-Based Learning",1,"選択","２・前\n２・後",null,null,null,null,null,null,"○",null,"○"]
[]
[]
[]
[null,null,"ドイツ語初級基礎A",1,"選択","１・前",null,null,null,null,null,null,"○",null,"○"]
[null,null,"ドイツ語初級基礎B",1,"選択","１・後",null,null,null,null,null,null,"○",null,"○"]
[null,null,"ドイツ語初級演習A",1,"選択","１・前",null,null,null,null,null,null,"○",null,"○"]
[null,null,"ドイツ語初級演習B",1,"選択","１・後",null,null,null,null,null,null,"○",null,"○"]
[null,null,"ドイツ語中級A",1,"選択","２・前",null,null,null,null,null,null,"○",null,"○"]
[null,null,"ドイツ語中級B",1,"選択","２・後",null,null,null,null,null,null,"○",null,"○"]
[null,null,"ドイツ語上級A",1,"選択","３・前",null,null,null,null,null,null,"○",null,"○"]
[null,null,"ドイツ語上級B",1,"選択","３・後",null,null,null,null,null,null,"○",null,"○"]
[null,null,"フランス語初級基礎A",1,"選択","１・前",null,null,null,null,null,null,"○",null,"○"]
[null,null,"フランス語初級基礎B",1,"選択","１・後",null,null,null,null,null,null,"○",null,"○"]
[null,null,"フランス語初級演習Ａ",1,"選択","１・前",null,null,null,null,null,null,"○",null,"○"]
[null,null,"フランス語初級演習Ｂ",1,"選択","１・後",null,null,null,null,null,null,"○",null,"○"]
[null,null,"フランス語中級Ａ",1,"選択","２・前",null,null,null,null,null,null,"○",null,"○"]
[null,null,"フランス語中級Ｂ",1,"選択","２・後",null,null,null,null,null,null,"○",null,"○"]
[null,null,"フランス語上級Ａ",1,"選択","３・前",null,null,null,null,null,null,"○",null,"○"]
[null,null,"フランス語上級Ｂ",1,"選択","３・後",null,null,null,null,null,null,"○",null,"○"]
[null,null,"中国語初級基礎Ａ",1,"選択","１・前",null,null,null,null,null,null,"○",null,"○"]
[null,null,"中国語初級基礎Ｂ",1,"選択","１・後",null,null,null,null,null,null,"○",null,"○"]
[null,null,"中国語初級演習Ａ",1,"選択","１・前",null,null,null,null,null,null,"○",null,"○"]
[null,null,"中国語初級演習Ｂ",1,"選択","１・後",null,null,null,null,null,null,"○",null,"○"]
[null,null,"中国語中級Ａ",1,"選択","２・前",null,null,null,null,null,null,"○",null,"○"]
[null,null,"中国語中級Ｂ",1,"選択","２・後",null,null,null,null,null,null,"○",null,"○"]
[]
[]
[]
[]
[null,null,"上記の背景色が黄色の部分は科目の追加等に使用して下さい．"]

{"sheet":"教養","index":13,"n_rows":150,"n_cols":21,"rows_kept":150,"cut":false,"hidden":false,"merged":[[149,0,149,1],[149,2,149,7],[149,8,149,20],[2,20,3,20],[2,6,2,8],[4,1,12,1],[148,0,148,20],[44,1,67,1],[68,0,141,0],[13,1,27,1],[28,1,32,1],[33,1,43,1],[142,0,147,1],[68,1,93,1],[4,0,67,0],[94,1,116,1],[117,1,141,1],[0,0,0,20],[1,2,3,2],[1,3,3,3],[1,4,3,4],[1,5,3,5],[2,9,2,11],[2,17,3,17],[2,19,3,19],[1,6,1,16],[1,17,1,19],[2,14,2,16],[2,18,3,18],[2,12,2,13],[1,0,3,1]]}
["　　【 教養 】"]
["区分",null,"授業科目名","単位数","必須、選択などの別","学年・学期","学習・教育到達目標に対する関与の程度",null,null,null,null,null,null,null,null,null,null,"これまでの取得単位",null,null,"今期の目標"]
[null,null,null,null,null,null,"A",null,null,"B",null,null,"C",null,"D",null,null,"取得科目の単位数を入力","取得年次","成績点\nS=30点\nA+=25点, A=20点\nB+=15点, B=10点\nC+=5点, C= 0点","取得目標科目の単位数を入力"]
[null,null,null,null,null,null,"(1)","(2)","(3)","(1)","(2)","(3)","(1)","(2)","(1)","(2)","(3)"]
["工芸科学教養科目","工芸科学入門","工芸科学基礎",1,"選択必修","１・前",null,"○",null,null,null,null,null,null,"○",null,null,1,1,20]
[null,null,"キャリア教育基礎",1,"選択必修","１・前",null,"○",null,null,null,null,null,null,"○",null,null,1,1,20]
[null,null,"ＫＩＴスタンダード",2,"選択必修","１・後",null,"○",null,null,null,null,null,null,"○"]
[null,null,"学習・キャリア戦略論",2,"選択必修","１・後",null,"○",null,null,null,null,null,null,"○",null,null,null,null,null,2]
[null,null,"国際理解",1,"選択必修","１・前",null,"○",null,null,null,null,null,null,"○"]
[null,null,"人権教育",2,"選択必修","1・前",null,"○",null,null,null,null,null,null,"○",null,null,null,null,null,2]
[]
[]
[]
[null,"科学技術と環境・倫理","地球環境論",2,"選択必修","１・前",null,"○","○",null,null,null,null,null,"○",null,null,2,1,20]
[null,null,"環境マネジメント",1,"選択必修","３・前",null,"○","○",null,null,null,null,null,"○"]
[null,null,"環境問題と持続可能な社会",2,"選択必修","１・前",null,"○","○",null,null,null,null,null,"○",null,null,2,1,30]
[null,null,"環境と法",2,"選択必修","1・後",null,"○","○",null,null,null,null,null,"○"]
[null,null,"ｴﾈﾙｷﾞｰ科学",2,"選択必修","1・前",null,"○","○",null,null,null,null,null,"○"]
[]
[]
[]
[null,null,"情報セキュリティと情報倫理",2,"選択必修","１・後",null,"○","○",null,null,null,null,null,"○",null,null,2,1,30]
[null,null,"生命倫理と環境倫理",2,"選択必修","２・前",null,"○","○",null,null,null,null,null,"○",null,null,null,null,null,2]
[null,null,"テクノロジー論",2,"選択必修","２・後",null,"○","○",null,null,null,null,null,"○",null,null,null,null,null,2]
[null,null,"現代科学と倫理",2,"選択必修","１・前",null,"○","○",null,null,null,null,null,"○"]
[]
[]
[]
[null,"ものづくりと技術戦略","ものづくりと生命物質科学",2,"選択必修","１・前",null,"○",null,null,null,null,null,null,"○"]
[null,null,"ものづくりとデザイン科学",2,"選択必修","１・後",null,"○",null,null,null,null,null,null,"○"]
[]
[]
[]
[null,"ﾘｰﾀﾞｰｼｯﾌﾟと経営戦略","ﾘｰﾀﾞｰｼｯﾌﾟ基礎Ⅰ",2,"選択必修","1・前",null,"○",null,null,null,null,null,null,"○",null,"○",2,1,30]
[null,null,"ﾘｰﾀﾞｰｼｯﾌﾟ基礎Ⅱ",2,"選択必修","２・前",null,"○",null,null,null,null,null,null,"○",null,"○"]
[null,null,"知的財産経営論",2,"選択必修","１・前",null,"○",null,null,null,null,null,null,"○",null,"○"]
[null,null,"ﾍﾞﾝﾁｬｰ企業経営学",2,"選択必修","３・後",null,"○",null,null,null,null,null,null,"○",null,"○"]
[null,null,"ﾘｰﾀﾞｰｼｯﾌﾟ実践Ⅰ",2,"選択必修","１・後",null,"○",null,null,null,null,null,null,"○",null,"○"]
[null,null,"ﾘｰﾀﾞｰｼｯﾌﾟ実践Ⅱ",2,"選択必修","２・後",null,"○",null,null,null,null,null,null,"○",null,"○"]
[null,null,"地域連携ﾌﾟﾛｼﾞｪｸﾄ",1,"選択必修","１・前",null,"○",null,null,null,null,null,null,"○",null,"○"]
[null,null,"国際連携ﾌﾟﾛｼﾞｪｸﾄⅠ",1,"選択必修","４・前",null,"○",null,null,null,null,null,null,"○",null,"○"]
[null,null,"国際連携ﾌﾟﾛｼﾞｪｸﾄⅡ",2,"選択必修","４・前",null,"○",null,null,null,null,null,null,"○",null,"○"]
[]
[]
[null,"京の伝統文化と先端","文化財学",2,"選択必修","２・前","○","○",null,null,null,null,null,null,"○",null,null,null,null,null,2]
[null,null,"文化芸術都市としての京都",2,"選択必修","２・前","○","○",null,null,null,null,null,null,"○",null,null,null,null,null,2]
[null,null,"京の伝統工芸－技と美",2,"選択必修","３・前","○","○",null,null,null,null,null,null,"○",null,null,null,null,null,2]
[null,null,"京の意匠",2,"選択必修","1・後","○","○",null,null,null,null,null,null,"○"]
[null,null,"京のまち",2,"選択必修","３・後","○","○",null,null,null,null,null,null,"○"]
[null,null,"京の知恵　伝統産業の先進的ものづくり",2,"選択必修","２・後","○","○",null,null,null,null,null,null,"○"]
[null,null,"京の産業技術史",2,"選択","1・前","○","○",null,null,null,null,null,null,"○"]
[null,null,"禅と世界文化",2,"選択必修","１・前 １・後","○","○",null,null,null,null,null,null,"○"]
[null,null,"京都の文学Ⅰ",2,"選択必修","1・前","○","○",null,null,null,null,null,null,"○"]
[null,null,"京都の文学Ⅱ",2,"選択必修","１・後","○","○",null,null,null,null,null,null,"○"]
[null,null,"京都の歴史Ⅰ",2,"選択必修","1・前","○","○",null,null,null,null,null,null,"○"]
[null,null,"京都の歴史Ⅱ",2,"選択必修","１・後","○","○",null,null,null,null,null,null,"○"]
[null,null,"現代京都論",2,"選択必修","1・前","○","○",null,null,null,null,null,null,"○"]
[null,null,"京都の農林業",2,"選択必修","１・後","○","○",null,null,null,null,null,null,"○"]
[null,null,"京都の自然",2,"選択必修","1・前","○","○",null,null,null,null,null,null,"○"]
[null,null,"宗教と文化",2,"選択必修","１・後","○","○",null,null,null,null,null,null,"○"]
[null,null,"英語で京都",2,"選択必修","３・後","○","○",null,null,null,null,null,null,"○"]
[null,null,"近代京都と三大学",2,"選択必修","1・前","○","○",null,null,null,null,null,null,"○"]
[null,null,"京都の経済",2,"選択必修","１・後","○","○",null,null,null,null,null,null,"○"]
[null,null,"資料で親しむ京都学（リベラルアーツ・ゼミナール）",2,"選択必修","２・後","○","○",null,null,null,null,null,null,"○"]
[null,null,"京都の文化と文化財",2,"選択必修","１・後","○","○",null,null,null,null,null,null,"○"]
[]
[]
[]
["基本教養科目","人と社会","法学",2,"選択必修","１・前","○","○",null,null,null,null,null,null,"○",null,null,2,1,30]
[null,null,"憲法",2,"選択必修","１・後","○","○",null,null,null,null,null,null,"○"]
[null,null,"経済学",2,"選択必修","２・前","○","○",null,null,null,null,null,null,"○"]
[null,null,"心理学",2,"選択必修","1・前","○","○",null,null,null,null,null,null,"○"]
[null,null,"現代教育論",2,"選択必修","１・前","○","○",null,null,null,null,null,null,"○"]
[null,null,"政治学",2,"選択必修","１・後","○","○",null,null,null,null,null,null,"○"]
[null,null,"経済学入門",2,"選択必修","１・後","○","○",null,null,null,null,null,null,"○"]
[null,null,"国際政治",2,"選択必修","１・前","○","○",null,null,null,null,null,null,"○"]
[null,null,"生活と経済",2,"選択必修","１・後","○","○",null,null,null,null,null,null,"○"]
[null,null,"社会学Ⅰ",2,"選択必修","１・前","○","○",null,null,null,null,null,null,"○"]
[null,null,"社会学Ⅱ",2,"選択必修","１・後","○","○",null,null,null,null,null,null,"○"]
[null,null,"現代社会と心",2,"選択必修","１・後","○","○",null,null,null,null,null,null,"○"]
[null,null,"現代社会とジェンダー",2,"選択必修","１・前","○","○",null,null,null,null,null,null,"○"]
[null,null,"観光学α",2,"選択必修","２・前","○","○",null,null,null,null,null,null,"○"]
[null,null,"医療と社会",2,"選択必修","１・前","○","○",null,null,null,null,null,null,"○"]
[null,null,"現代医療の人間観",2,"選択必修","１・後","○","○",null,null,null,null,null,null,"○"]
[null,null,"認知心理学",2,"選択必修","１・前","○","○",null,null,null,null,null,null,"○"]
[null,null,"発達心理学",2,"選択必修","１・前","○","○",null,null,null,null,null,null,"○"]
[null,null,"社会科学の学び方（リベラルアーツ・ゼミナール）",2,"選択必修","１・後","○","○",null,null,null,null,null,null,"○"]
[null,null,"世界はいま（リベラルアーツ・ゼミナール）",1,"選択必修","１・前","○","○",null,null,null,null,null,null,"○"]
[null,null,"現代イスラーム世界の文化と社会（リベラルアーツ・ゼミナール）",1,"選択必修","１・前","○","○",null,null,null,null,null,null,"○"]
[null,null,"経営哲学（リベラルアーツ・ゼミナール）",2,"選択必修","２・後","○","○",null,null,null,null,null,null,"○"]
[null,null,"現在正義論（リベラルアーツ・ゼミナール）",2,"選択必修","１・後","○","○",null,null,null,null,null,null,"○"]
[]
[]
[]
[null,"人と文化","哲学",2,"選択必修","１・後","○","○",null,null,null,null,null,null,"○",null,null,2,1,20]
[null,null,"歴史学",2,"選択必修","１・後","○","○",null,null,null,null,null,null,"○"]
[null,null,"舞台芸術論",2,"選択必修","３・前","○","○",null,null,null,null,null,null,"○"]
[null,null,"日本近代精神史",2,"選択必修","１・前","○","○",null,null,null,null,null,null,"○"]
[null,null,"美と芸術",2,"選択必修","１・前","○","○",null,null,null,null,null,null,"○"]
[null,null,"比較宗教学",2,"選択必修","１・前","○","○",null,null,null,null,null,null,"○"]
[null,null,"西洋文学論",2,"選択必修","１・前","○","○",null,null,null,null,null,null,"○"]
[null,null,"日本近現代文学",2,"選択必修","１・後","○","○",null,null,null,null,null,null,"○"]
[null,null,"東西文化交流史",2,"選択必修","１・後","○","○",null,null,null,null,null,null,"○"]
[null,null,"西洋文化論",2,"選択必修","１・後","○","○",null,null,null,null,null,null,"○"]
[null,null,"日本史",2,"選択必修","１・後","○","○",null,null,null,null,null,null,"○"]
[null,null,"フランス語圏の文化とジャポニズム",2,"選択必修","２・前","○","○",null,null,null,null,null,null,"○"]
[null,null,"ｱｼﾞｱの歴史と文化",2,"選択必修","１・前","○","○",null,null,null,null,null,null,"○"]
[null,null,"ﾖ-ﾛｯﾊﾟの歴史と文化",2,"選択必修","１・後","○","○",null,null,null,null,null,null,"○"]
[null,null,"映画で学ぶ英語と文化",2,"選択必修","３・後","○","○",null,null,null,null,null,null,"○"]
[null,null,"映画で学ぶドイツ語と文化",2,"選択必修","３・前","○","○",null,null,null,null,null,null,"○"]
[null,null,"ﾗﾃﾝ語",2,"選択必修","１・後","○","○",null,null,null,null,null,null,"○"]
[null,null,"文芸創作論",2,"選択必修","１・後","○","○",null,null,null,null,null,null,"○"]
[null,null,"現代社会に学ぶ問う力・書く力（リベラルアーツ・ゼミナール）",2,"選択必修","１・前","○","○",null,null,null,null,null,null,"○"]
[null,null,"感性の実践哲学（リベラルアーツ・ゼミナール）",1,"選択必修","１・前","○","○",null,null,null,null,null,null,"○"]
[]
[]
[]
[null,"人と自然","人と自然と数学α",2,"選択必修","１・前","○","○",null,null,null,null,null,null,"○",null,null,2,1,20]
[null,null,"人と自然と数学β",2,"選択必修","１・後","○","○",null,null,null,null,null,null,"○"]
[null,null,"人と自然と物理学",2,"選択必修","１・後","○","○",null,null,null,null,null,null,"○"]
[null,null,"化学概論Ⅰ",2,"選択必修","１・前","○","○",null,null,null,null,null,null,"○"]
[null,null,"化学概論Ⅱ",2,"選択必修","１・後","○","○",null,null,null,null,null,null,"○"]
[null,null,"生物学概論Ⅰ",2,"選択必修","１・前","○","○",null,null,null,null,null,null,"○"]
[null,null,"生物学概論Ⅱ",2,"選択必修","１・後","○","○",null,null,null,null,null,null,"○"]
[null,null,"科学史",2,"選択必修","１・前","○","○",null,null,null,null,null,null,"○"]
[null,null,"物理学Ⅰ",2,"選択必修","１・前","○","○",null,null,null,null,null,null,"○"]
[null,null,"食と健康の科学",2,"選択必修","１・前","○","○",null,null,null,null,null,null,"○"]
[null,null,"生命科学講話",2,"選択必修","１・前","○","○",null,null,null,null,null,null,"○"]
[null,null,"時間生物学特論",2,"選択必修","１・前","○","○",null,null,null,null,null,null,"○"]
[null,null,"生物学的人間学",2,"選択必修","１・前","○","○",null,null,null,null,null,null,"○"]
[null,null,"医学概論",2,"選択必修","２・後","○","○",null,null,null,null,null,null,"○"]
[null,null,"医療人類学",2,"選択必修","１・前","○","○",null,null,null,null,null,null,"○"]
[null,null,"意外と知らない植物の世界",2,"選択必修","１・後","○","○",null,null,null,null,null,null,"○"]
[null,null,"ﾚｰｻﾞｰで測る，創る，楽しむ(ﾘﾍﾞﾗﾙｱｰﾂ･ｾﾞﾐﾅｰﾙ)",2,"選択必修","１・前","○","○",null,null,null,null,null,null,"○"]
[null,null,"京都の防災と府民",2,"選択必修","１・後","○","○",null,null,null,null,null,null,"○"]
[null,null,"製品の機能から科学を学ぶ（リベラルアーツ・ゼミナール）",2,"選択必修","１・前","○","○",null,null,null,null,null,null,"○"]
[null,null,"ｷｬﾝﾊﾟｽﾍﾙｽ概論",2,"選択","１・前",null,"○",null,null,null,null,null,null,"○"]
[null,null,"健康体力科学",2,"選択","2・後",null,"○",null,null,null,null,null,null,"○"]
[null,null,"生体行動科学",2,"選択","２・前",null,"○",null,null,null,null,null,null,"○"]
[]
[]
[null,null,"　",null,null,null,null,null,null,null,null,null,null,null,null,null,null,null,null,null,"　　"]
["体の科学",null,"生涯スポーツ",2,"選択","２・前\n２・後",null,"○",null,null,null,null,null,null,"○"]
[null,null,"スポーツ科学Ⅰ",2,"選択必修","１・前","○","○",null,null,null,null,null,null,"○",null,null,2,1,20]
[null,null,"スポーツ科学Ⅱ",2,"選択必修","１・後","○","○",null,null,null,null,null,null,"○"]
[]
[]
[]
[]
[null,null,"上記の背景色が黄色の部分は科目の追加等に使用して下さい．"]

{"sheet":"専門","index":14,"n_rows":111,"n_cols":21,"rows_kept":111,"cut":false,"hidden":false,"merged":[[2,14,2,16],[2,17,3,17],[0,0,0,20],[1,2,3,2],[1,3,3,3],[1,4,3,4],[2,20,3,20],[1,17,1,19],[1,6,1,16],[2,6,2,8],[2,9,2,11],[2,12,2,13],[109,0,109,20],[110,0,110,1],[110,2,110,7],[110,8,110,20],[1,0,3,1],[36,1,41,1],[6,1,26,1],[1,5,3,5],[2,18,3,18],[2,19,3,19],[6,0,60,0],[61,0,108,1],[4,0,5,1],[27,1,34,1],[42,1,52,1],[53,1,60,1]]}
["　　【 専門 】"]
["区分",null,"授業科目名","単位数","必須、選択などの別","学年・学期","学習・教育到達目標に対する関与の程度",null,null,null,null,null,null,null,null,null,null,"これまでの取得単位",null,null,"今期の目標"]
[null,null,null,null,null,null,"A",null,null,"B",null,null,"C",null,"D",null,null,"取得科目の単位数を入力","取得年次","成績点\nS=30点\nA+=25点, A=20点\nB+=15点, B=10点\nC+=5点, C= 0点","取得目標科目の単位数を入力"]
[null,null,null,null,null,null,"(1)","(2)","(3)","(1)","(2)","(3)","(1)","(2)","(1)","(2)","(3)"]
["専門導入科目",null,"エンジニアのためのリテラシー",2,"必修","１・前",null,"◎",null,null,null,"○",null,"◎","○",null,null,2,1,30]
[null,null,"地域課題導入ｾﾐﾅｰ",1,"必修","１・前",null,null,null,null,null,"○",null,null,"○"]
["専門基礎科目","数学","基礎解析Ⅰ",2,"必修","１・前",null,null,null,"◎",null,"○",null,null,"○",null,null,2,1,20]
[null,null,"基礎解析Ⅱ",2,"選択必修","１・後",null,null,null,"○",null,"○",null,null,"○",null,null,null,null,null,2]
[null,null,"線形代数学Ⅰ",2,"必修","１・前",null,null,null,"◎",null,"○",null,null,"○",null,null,2,1,20]
[null,null,"線形代数学Ⅱ",2,"選択必修","１・後",null,null,null,"○",null,"○",null,null,"○",null,null,null,null,null,2]
[null,null,"数学演習Ⅰ",2,"選択","１・前",null,null,null,"○",null,"○",null,null,"○"]
[null,null,"数学演習Ⅱ",2,"選択","１・後",null,null,null,"○",null,"○",null,null,"○"]
[null,null,"解析学Ⅰ",2,"選択必修","２・前",null,null,null,"○",null,"○",null,null,"○"]
[null,null,"解析学Ⅱ",2,"選択","２・後",null,null,null,"○",null,"○",null,null,"○"]
[null,null,"統計数理",2,"必修","２・前",null,null,null,"◎",null,"○",null,null,"○",null,null,2,2,20]
[null,null,"応用解析",2,"選択必修","２・前",null,null,null,"○",null,"○",null,null,"○"]
[null,null,"応用幾何",2,"選択必修","２・後",null,null,null,"○",null,"○",null,null,"○",null,null,null,null,null,2]
[null,null,"数理解析",2,"選択必修","２・後",null,null,null,"○",null,"○",null,null,"○"]
[null,null,"応用数理",2,"選択必修","３・前",null,null,null,"○",null,"○",null,null,"○"]
[null,null,"数理応用代数",2,"選択","４・後",null,null,null,"○",null,"○",null,null,"○"]
[null,null,"数理応用幾何",2,"選択","４・後",null,null,null,"○",null,"○",null,null,"○"]
[null,null,"数理応用解析",2,"選択","４・後",null,null,null,"○",null,"○",null,null,"○"]
[null,null,"データサイエンスの数理",2,"選択","４・後",null,null,null,"○",null,"○",null,null,"○"]
[null,null,"数理応用演習",1,"選択","４・前",null,null,null,"○",null,"○",null,null,"○"]
[]
[]
[]
[null,"物理学","物理学Ⅰ",2,"選択必修","１・前",null,null,null,"○",null,"○",null,null,"○"]
[null,null,"物理学Ⅱ",2,"選択必修","１・後",null,null,null,"○",null,"○",null,null,"○"]
[null,null,"物理学実験法及び基礎実験",2,"必修","２・後",null,null,null,"◎",null,"○",null,null,"○",null,null,2,2,30]
[null,null,"量子力学",2,"選択必修","２・後",null,null,null,"○",null,"○",null,null,"○"]
[null,null,"統計熱力学",2,"選択必修","２・前",null,null,null,"○",null,"○",null,null,"○"]
[]
[]
[]
[null,"情報","先端情報工学概論",2,"選択","３・後",null,null,null,"○",null,"○",null,null,"○"]
[null,"その他","インターンシップＡ",1,"選択","３・前",null,null,null,"○",null,"◎",null,null,"○"]
[null,null,"インターンシップＢ",2,"選択","３・前",null,null,null,"○",null,"◎",null,null,"○"]
[null,null,"新先端ﾌｧｲﾌﾞﾛ科学",2,"選択","１・後",null,null,null,"○",null,"○",null,null,"○"]
[]
[]
[]
[null,"知的\n財産","アントレプレナーシップ概論",2,"選択必修","２・前",null,null,null,"○",null,"○",null,null,"○"]
[null,null,"知的財産概論Ⅰ",2,"選択必修","２・前",null,null,null,"○",null,"○",null,null,"○"]
[null,null,"知的財産概論Ⅱ",2,"選択必修","２・後",null,null,null,"○",null,"○",null,null,"○"]
[null,null,"特許法・実用新案法Ⅰ",2,"選択必修","２・前",null,null,null,"○",null,"○",null,null,"○"]
[null,null,"特許法・実用新案法Ⅱ",2,"選択必修","２・後",null,null,null,"○",null,"○",null,null,"○"]
[null,null,"知的財産演習",1,"選択必修","３・前",null,null,null,"○",null,"○",null,null,"○"]
[null,null,"民法概論Ⅰ",2,"選択必修","２・前",null,null,null,"○",null,"○",null,null,"○"]
[null,null,"民法概論Ⅱ",2,"選択必修","２・後",null,null,null,"○",null,"○",null,null,"○"]
[]
[]
[]
[null,"複合\n材料","繊維科学概論",1,"選択","３・後",null,null,null,"○",null,"○",null,null,"○"]
[null,null,"複合材料科学",2,"選択","３・後",null,null,null,"○",null,"○",null,null,"○"]
[null,null,"先端複合材料学",2,"選択","３・後",null,null,null,"○",null,"○",null,null,"○"]
[null,null,"複合材料基礎実験",1,"選択","３・後",null,null,null,"○",null,"○",null,null,"○"]
[null,null,"複合材料ものづくり実験",1,"選択","４・前",null,null,null,"○",null,"○",null,null,"○"]
[]
[]
[]
["課程専門\n科目",null,"工業力学Ⅰ",2,"必修","１・前",null,null,null,"◎",null,"○",null,null,"○",null,null,2,1,20]
[null,null,"工業力学Ⅱ",2,"必修","１・後",null,null,null,"◎",null,"○",null,null,"○",null,null,2,1,20]
[null,null,"材料力学Ⅰ及び演習",2,"必修","１・後",null,null,null,null,"◎","○",null,null,"○",null,null,2,1,20]
[null,null,"材料力学Ⅱ及び演習",2,"必修","２・前",null,null,null,null,"◎","○",null,null,"○",null,null,null,null,null,2]
[null,null,"熱力学Ⅰ及び演習",2,"必修","２・前",null,null,null,null,"◎","○",null,null,"○",null,null,null,null,null,2]
[null,null,"熱力学Ⅱ及び演習",2,"必修","２・後",null,null,null,null,"◎","○",null,null,"○",null,null,null,null,null,2]
[null,null,"機械力学Ⅰ及び演習",2,"必修","２・前",null,null,null,null,"◎","○",null,null,"○",null,null,null,null,null,2]
[null,null,"機械力学Ⅱ及び演習",2,"必修","２・後",null,null,null,null,"◎","○",null,null,"○",null,null,null,null,null,2]
[null,null,"流体力学Ⅰ及び演習",2,"必修","２・後",null,null,null,null,"◎","○",null,null,"○",null,null,null,null,null,2]
[null,null,"流体力学Ⅱ及び演習",2,"必修","３・前",null,null,null,null,"◎","○",null,null,"○"]
[null,null,"機械加工法及び実習",2,"必修","２・前",null,null,null,null,"◎","○",null,null,"○",null,"◎"]
[null,null,"データサイエンス",1,"必修","３・前",null,null,null,"◎",null,"○",null,null,"○"]
[null,null,"機械製図法Ⅰ",2,"必修","２・前",null,null,null,null,"◎","○",null,null,"○",null,null,null,null,null,2]
[null,null,"機械製図法Ⅱ",2,"必修","２・後",null,null,null,null,"◎","○",null,null,"○",null,null,null,null,null,2]
[null,null,"創造設計製図演習",2,"必修","３・後",null,null,null,null,"◎","○",null,null,"○","◎","◎"]
[null,null,"機械工学実験Ⅰ",1,"必修","３・前\n３・後",null,null,"◎",null,null,"◎",null,"◎","○",null,"◎"]
[null,null,"機械工学実験Ⅱ",1,"必修","３・前\n３・後\n２・後",null,null,"◎",null,null,"◎",null,"◎","○",null,"◎"]
[null,null,"計測基礎学",2,"選択","１・後",null,null,null,null,null,"○",null,null,"○"]
[null,null,"工業材料学",2,"選択","２・前",null,null,null,null,null,"○",null,null,"○"]
[null,null,"切削・研削加工学",2,"選択","２・前",null,null,null,null,null,"○",null,null,"○"]
[null,null,"ｺﾝﾋﾟｭｰﾀｼﾐｭﾚｰｼｮﾝ基礎学",2,"選択","２・後",null,null,null,null,null,"○",null,null,"○"]
[null,null,"材料強度学",2,"選択","３・前",null,null,null,null,null,"○",null,null,"○"]
[null,null,"機械構造解析学",2,"選択","２・後",null,null,null,null,null,"○",null,null,"○"]
[null,null,"工業計測法",2,"選択","３・前",null,null,null,null,null,"○",null,null,"○"]
[null,null,"システム制御理論",2,"選択","２・後",null,null,null,null,null,"○",null,null,"○"]
[null,null,"機械設計学",2,"選択","２・後",null,null,null,null,null,"○",null,null,"○"]
[null,null,"熱エネルギー輸送現象",2,"選択","３・後",null,null,null,null,null,"○",null,null,"○"]
[null,null,"最適制御システム",2,"選択","３・後",null,null,null,null,null,"○",null,null,"○"]
[null,null,"塑性力学",2,"選択","３・前",null,null,null,null,null,"○",null,null,"○"]
[null,null,"特殊加工学",2,"選択","３・前",null,null,null,null,null,"○",null,null,"○"]
[null,null,"応用機械設計",2,"選択","３・前",null,null,null,null,null,"○",null,null,"○"]
[null,null,"塑性加工学",2,"選択","３・後",null,null,null,null,null,"○",null,null,"○"]
[null,null,"計画工学",2,"選択","３・後",null,null,null,null,null,"○",null,null,"○"]
[null,null,"ロボティクス",2,"選択","４・前",null,null,null,null,null,"○",null,null,"○"]
[null,null,"卒業論文",1,"選択","４・後",null,null,null,null,null,"○",null,null,"○"]
[null,null,"卒業研究",8,"必修","４・通",null,null,null,null,null,"◎",null,null,"○","◎"]
[]
[]
[]
[null,null,"地域創生課題セミナーⅠ\n（創造設計製図演習に読替）",2,"必修","３・後",null,null,null,null,"◎","○",null,null,"○","◎","◎"]
[null,null,"地域創生課題セミナーⅡ",2,"選択","４・前",null,null,null,null,null,"○",null,null,"○"]
[null,null,"ものづくりインターンシップⅠ",4,"必修","３・後",null,null,null,null,null,"◎",null,null,"○"]
[null,null,"ものづくりインターンシップⅡ",4,"選択","４・前",null,null,null,null,null,"◎",null,null,"○"]
[null,null,"ものづくりインターンシップⅢ",2,"選択","４・前",null,null,null,null,null,"◎",null,null,"○"]
[null,null,"卒業プロジェクト\n（卒業研究に読替）",8,"必修","４・通",null,null,null,null,null,"◎",null,null,"○","◎"]
[]
[]
[]
[]
[null,null,"上記の背景色が黄色の部分は科目の追加等に使用して下さい．"]

{"sheet":"科目外","index":15,"n_rows":27,"n_cols":16,"rows_kept":27,"cut":false,"hidden":false,"merged":[[25,0,26,12],[25,13,25,14],[25,15,26,15],[21,14,22,14],[23,14,24,14],[23,15,24,15],[20,0,21,0],[21,3,21,5],[22,6,23,8],[21,6,21,8],[21,15,22,15],[26,13,26,14],[19,13,20,13],[21,13,22,13],[21,9,21,10],[22,9,23,9],[22,10,23,10],[15,12,16,12],[7,12,8,12],[20,9,20,10],[19,12,20,12],[21,12,22,12],[17,14,18,14],[19,14,20,14],[23,13,24,13],[7,14,8,14],[9,14,10,14],[11,14,12,14],[23,12,24,12],[16,11,23,11],[17,12,18,12],[15,14,16,14],[13,12,14,12],[13,14,14,14],[17,13,18,13],[1,14,2,14],[9,12,10,12],[19,15,20,15],[9,15,10,15],[1,15,2,15],[11,15,12,15],[13,15,14,15],[1,12,2,12],[1,13,2,13],[15,13,16,13],[11,12,12,12],[3,13,4,13],[5,13,6,13],[7,13,8,13],[3,14,4,14],[5,14,6,14],[3,12,4,12],[3,15,4,15],[5,15,6,15],[7,15,8,15],[17,15,18,15],[15,15,16,15],[9,13,10,13],[11,13,12,13],[13,13,14,13],[6,0,9,0],[5,12,6,12],[1,3,2,5],[3,3,5,5],[1,0,2,0],[1,1,2,1],[1,2,2,2],[3,1,5,1],[3,2,5,2],[3,0,5,0],[10,6,11,8],[1,6,2,8],[12,9,19,9],[16,6,17,6],[1,9,2,10],[18,6,19,6],[8,6,9,8],[6,6,7,8],[12,2,19,2],[14,3,15,3],[16,3,17,3],[10,3,11,5],[10,1,11,1],[6,2,7,2],[8,2,9,2],[3,6,5,8],[3,9,5,10],[1,11,15,11],[0,0,0,13],[24,0,24,11],[6,10,9,10],[12,10,19,10],[10,9,11,9],[10,10,11,10],[6,9,9,9],[10,0,11,0],[20,3,20,5],[20,6,20,8],[22,0,23,0],[22,1,23,1],[22,2,23,2],[22,3,23,5],[12,0,19,0],[12,6,13,6],[8,3,9,5],[14,6,15,6],[6,3,7,5],[10,2,11,2],[6,1,9,1],[18,3,19,3],[12,1,19,1],[12,3,13,3]]}
["　　【 科目外 】"]
["学習・教育到達目標","達成度\n評価対象","評価基準","これまでに\n達成したもの\n(１を入力，\n卒業研究は\n時間数）",null,null,"今期の目標\n(１を入力，\n卒業研究は\n時間数）",null,null,"ﾎﾟｲﾝﾄ\n加減点項目",null,null,"学習・教育到達目標","自発的学習計画\n（技術者としての自己デザインのための自発的学習，特に，\n他分野の人とチームを構成し，協働して目的を遂行する学習)","自発的学習計画の達成状況に対する自己評価","達成状況に対する自己評価 （-5点～5点)"]
[]
["A(3)\n【 倫理 】","環境安全マネジメント活動","環境安全マネジメント講習に出席し，少なくとも１年間環境安全マネジメントプログラム実行計画書にしたがって活動していること．",null,null,null,null,null,null,"――――――",null,null,"A(1)\n【 教養 】","A(1)の自発的学習計画を書く","A(1)の自己評価を書く",3]
[]
[null,null,null,null,null,null,null,null,null,null,null,null,"A(2)\n【 視点 】","A(２)の自発的学習計画を書く","A(２)の自己評価を書く",5]
["B(3)(b)\n【 開発 】","機械工学課程対象の工場見学，学術講演会及びインターンシップA，インターンシップB，ものづくりインターンシップⅠ，ものづくりインターンシップⅡ","工場見学",null,null,null,null,null,null,"左記以外の工場見学，学術講演会等に出席した回数"]
[null,null,null,null,null,null,null,null,null,null,null,null,"A(3)\n【 倫理 】","A(３)の自発的学習計画を書く","A(３)の自己評価を書く"]
[null,null,"学術講演会"]
[null,null,null,null,null,null,null,null,null,null,null,null,"B(1)\n【 基礎 】","B(1)の自発的学習計画を書く","B(1)の自己評価を書く"]
["C(1)\n【 国際】","―――――","――――――","――――",null,null,"――――",null,null,"外国語の資格試験等の受験回数",1]
[null,null,null,null,null,null,null,null,null,null,null,null,"B(2)\n【 専門 】","B(２)の自発的学習計画を書く","B(2)の自己評価を書く"]
["D(1)\n【 自発 】","達成度総合評価報告・学習計画書","学期ごとに達成度総合評価報告・学習計画書を提出",1,"前",1,1,"前",null,"現在までの達成度総合評価報告・学習計画書の提出回数 (過年度生は全ての回数を入力する)",3]
[null,null,null,null,"後",1,null,"後",null,null,null,null,"B(3)\n【 開発 】","B(３)の自発的学習計画を書く","B(3)の自己評価を書く"]
[null,null,null,2,"前",1,2,"前"]
[null,null,null,null,"後",null,null,"後",1,null,null,null,"C(1)\n【 国際 】","C(1)の自発的学習計画を書く","C(1)の自己評価を書く"]
[null,null,null,3,"前",null,3,"前"]
[null,null,null,null,"後",null,null,"後",null,null,null,null,"C(2)\n【 論理 】","C(2）の自発的学習計画を書く","C(2)の自己評価を書く"]
[null,null,null,4,"前",null,4,"前"]
[null,null,null,null,"後",null,null,"後",null,null,null,null,"D(1)\n【 自発 】","D(1)の自発的学習計画を書く","D(1)の自己評価を書く"]
["D(2)\n【 計画 】","《卒業研究》","卒業研究に要した学習時間",null,null,null,null,null,null,"――――――"]
[null,"卒業研究記録","卒業研究に関する記録を作成",null,null,null,null,null,null,"――――――",null,null,"D(2)\n【 計画 】","D(２)の自発的学習計画を書く","D(２)の自己評価を書く"]
["D(3)\n【 ﾘｰﾀﾞｰ 】","―――――","――――――","――――",null,null,"――――",null,null,"他分野の人と協働して目的を遂行するチームに参加した回数"]
[null,null,null,null,null,null,null,null,null,null,null,null,"D(3)\n【 ﾘｰﾀﾞｰ 】","D(３)の自発的学習計画を書く","D(３)の自己評価を書く"]
[]
[]
[null,null,null,null,null,null,null,null,null,null,null,null,null,"★ 上記の学習計画と自己評価は消去や上書きをせず，追加していくこと．"]

{"sheet":"【 達成度総合評価報告・学習計画書 】","index":16,"n_rows":45,"n_cols":13,"rows_kept":45,"cut":false,"hidden":false,"merged":[[5,0,5,15],[16,0,17,0],[3,3,3,4],[4,3,4,4],[28,2,28,8],[26,2,27,8],[7,8,7,10],[8,0,9,1],[10,8,12,8],[0,0,0,15],[3,8,4,15],[3,0,4,0],[3,1,3,2],[4,1,4,2],[1,1,1,15],[2,0,2,15],[3,5,4,5],[32,2,32,8],[8,8,9,9],[6,8,6,10],[24,0,24,15],[7,0,7,6],[10,0,12,0],[6,0,6,6],[23,0,23,15],[32,9,32,15],[21,8,22,10],[8,6,9,6],[29,9,29,15],[13,0,15,0],[6,11,22,15],[21,0,21,6],[13,8,15,8],[26,9,27,15],[6,7,22,7],[16,8,17,8],[8,2,8,5],[8,10,9,10],[22,1,22,6],[18,0,20,0],[35,9,35,15],[33,2,33,8],[29,2,29,8],[31,2,31,8],[26,0,27,1],[30,9,30,15],[31,9,31,15],[35,2,35,8],[30,2,30,8],[33,9,33,15],[34,9,34,15],[28,9,28,15],[18,8,20,8],[25,0,25,15],[34,2,34,8],[36,0,38,0],[28,0,30,0],[44,4,45,7],[43,0,43,15],[37,2,37,8],[41,12,42,15],[37,9,37,15],[39,0,40,15],[38,2,38,8],[31,0,33,0],[34,0,35,0],[44,12,45,15],[41,4,42,7],[38,9,38,15],[36,9,36,15],[36,2,36,8]]}
[]
[null,"【 達成度総合評価報告・学習計画書 】"]
[]
[null,"学籍番号",null,{"$f":"学習・教育到達目標と基本項目!$B$34","v":22123099},null,null,"年　　次",{"$f":"学習・教育到達目標と基本項目!$B$39","v":1}]
[null,"氏　　名",null,{"$f":"学習・教育到達目標と基本項目!$B$35","v":"工繊一郎"},null,null,"学　　期",{"$f":"IF(学習・教育到達目標と基本項目!$C$40=1,\"前学期\",IF(学習・教育到達目標と基本項目!$C$41=1,\"後学期\",\"\"))","v":"前学期"}]
[]
["【 達成度総合評価表 】",null,null,null,null,null,null,null,"【 学習計画表 】"]
[]
["学習・教育\n到達目標",null,"現在の自己評価",null,null,null,"総合評価点（全項目６０点以上で合格）",null,"学習・教育\n到達目標",null,"今期の目標達成率"]
[null,null,"達成率","換算成績点","自己評価点","換算成績点合計"]
["Ａ","（１）\n【 教養 】",{"$f":"'【 教養 】'!C15","v":100},{"$f":"'【 教養 】'!C16","v":78},{"$f":"科目外!P4","v":3},{"$f":"SUM(D11:E11)","v":81},{"$f":"C11*0.6+F11*0.4","v":92.4},null,"Ａ","（１）\n【 教養 】",{"$f":"'【 教養 】'!C17","v":100}]
[null,"（２）\n【 視点 】",{"$f":"'【 視点 】'!C16","v":94},{"$f":"'【 視点 】'!C17","v":92},{"$f":"科目外!P6","v":5},97,95.2,null,null,"（２）\n【 視点 】",{"$f":"'【 視点 】'!C18","v":100}]
[null,"（３）\n【 倫理 】",{"$f":"'【 倫理 】'!C16","v":0},{"$f":"'【 倫理 】'!C17","v":0},{"$f":"科目外!P8","v":0},0,0,null,null,"（３）\n【 倫理 】",{"$f":"'【 倫理 】'!C18","v":0}]
["Ｂ","（１）\n【 基礎 】",{"$f":"'【 基礎 】'!C20","v":79},{"$f":"'【 基礎 】'!C21","v":53},{"$f":"科目外!P10","v":0},53,68.599999999999994,null,"Ｂ","（１）\n【 基礎 】",{"$f":"'【 基礎 】'!C22","v":82}]
[null,"（２）\n【 専門 】",{"$f":"'【 専門 】'!C26","v":8},{"$f":"'【 専門 】'!C27","v":-5},{"$f":"科目外!P12","v":0},-5,2.8,null,null,"（２）\n【 専門 】",{"$f":"'【 専門 】'!C28","v":75}]
[null,"（３）\n【 開発 】",{"$f":"'【 開発 】(c)'!C17","v":7},{"$f":"'【 開発 】(c)'!C18","v":-17},{"$f":"科目外!P14","v":0},-17,-2.6000000000000005,null,null,"（３）\n【 開発 】",{"$f":"'【 開発 】(c)'!C19","v":20}]
["Ｃ","（１）\n【 国際 】",{"$f":"'【 国際 】'!D18","v":33},{"$f":"'【 国際 】'!D19","v":27},{"$f":"科目外!P16","v":0},27,30.6,null,"Ｃ","（１）\n【 国際 】",{"$f":"'【 国際 】'!D20","v":92}]
[null,"（２）\n【 論理 】",{"$f":"'【 論理 】'!C15","v":33},{"$f":"'【 論理 】'!C16","v":31},{"$f":"科目外!P18","v":0},31,32.200000000000003,null,null,"（２）\n【 論理 】",{"$f":"'【 論理 】'!C17","v":33}]
["Ｄ","（１）\n【 自発 】",{"$f":"'【 自発 】'!C20","v":36},{"$f":"'【 自発 】'!C21","v":38},{"$f":"科目外!P20","v":0},38,36.799999999999997,null,"Ｄ","（１）\n【 自発 】",{"$f":"'【 自発 】'!C22","v":51}]
[null,"（２）\n【 計画 】",{"$f":"'【 計画 】'!C15","v":0},{"$f":"'【 計画 】'!C16","v":0},{"$f":"科目外!P22","v":0},0,0,null,null,"（２）\n【 計画 】",{"$f":"'【 計画 】'!C17","v":0}]
[null,"（３）\n【 ﾘｰﾀﾞｰ 】",{"$f":"'【 ﾘｰﾀﾞｰ 】'!C19","v":20},{"$f":"'【 ﾘｰﾀﾞｰ 】'!C20","v":16},{"$f":"科目外!P24","v":0},16,18.399999999999999,null,null,"（３）\n【 ﾘｰﾀﾞｰ 】",{"$f":"'【 ﾘｰﾀﾞｰ 】'!C21","v":20}]
[]
[null,"【 総合評価点は，達成率×0.6＋換算成績点合計×0.4　】"]
[]
["【 自発的学習計画と達成状況自己評価表 】"]
[]
["学習・教育\n到達目標",null,"自発的学習計画（技術者としての自己デザインのための自発的学習，特に，他分野の人とチームを構成し，協働して目的を遂行する学習)",null,null,null,null,null,null,"自発的学習計画の達成状況に対する自己評価"]
[]
["Ａ","（１）\n【 教養 】",{"$f":"科目外!N4","v":"A(1)の自発的学習計画を書く"},null,null,null,null,null,null,{"$f":"科目外!O4","v":"A(1)の自己評価を書く"}]
[null,"（２）\n【 視点 】",{"$f":"科目外!N6","v":"A(２)の自発的学習計画を書く"},null,null,null,null,null,null,{"$f":"科目外!O6","v":"A(２)の自己評価を書く"}]
[null,"（３）\n【 倫理 】",{"$f":"科目外!N8","v":"A(３)の自発的学習計画を書く"},null,null,null,null,null,null,{"$f":"科目外!O8","v":"A(３)の自己評価を書く"}]
["Ｂ","（１）\n【 基礎 】",{"$f":"科目外!N10","v":"B(1)の自発的学習計画を書く"},null,null,null,null,null,null,{"$f":"科目外!O10","v":"B(1)の自己評価を書く"}]
[null,"（２）\n【 専門 】",{"$f":"科目外!N12","v":"B(２)の自発的学習計画を書く"},null,null,null,null,null,null,{"$f":"科目外!O12","v":"B(2)の自己評価を書く"}]
[null,"（３）\n【 開発 】",{"$f":"科目外!N14","v":"B(３)の自発的学習計画を書く"},null,null,null,null,null,null,{"$f":"科目外!O14","v":"B(3)の自己評価を書く"}]
["Ｃ","（１）\n【 国際 】",{"$f":"科目外!N16","v":"C(1)の自発的学習計画を書く"},null,null,null,null,null,null,{"$f":"科目外!O16","v":"C(1)の自己評価を書く"}]
[null,"（２）\n【 論理 】",{"$f":"科目外!N18","v":"C(2）の自発的学習計画を書く"},null,null,null,null,null,null,{"$f":"科目外!O18","v":"C(2)の自己評価を書く"}]
["Ｄ","（１）\n【 自発 】",{"$f":"科目外!N20","v":"D(1)の自発的学習計画を書く"},null,null,null,null,null,null,{"$f":"科目外!O20","v":"D(1)の自己評価を書く"}]
[null,"（２）\n【 計画 】",{"$f":"科目外!N22","v":"D(２)の自発的学習計画を書く"},null,null,null,null,null,null,{"$f":"科目外!O22","v":"D(２)の自己評価を書く"}]
[null,"（３）\n【 ﾘｰﾀﾞｰ 】",{"$f":"科目外!N24","v":"D(３)の自発的学習計画を書く"},null,null,null,null,null,null,{"$f":"科目外!O24","v":"D(３)の自己評価を書く"}]
[]
[]
[null,null,null,null,"出力ﾌｧｲﾙは，『学籍番号.csv』",null,null,null,null,null,null,null,"今期の登録単位一覧の出力ﾌｧｲﾙ名は，『登録単位(学籍番号).csv』"]
[]
[]
[null,null,null,null,"上記の画面を印刷",null,null,null,null,null,null,null,"これまでの取得単位一覧の出力ﾌｧｲﾙ名は，『取得単位(学籍番号).csv』"]

{"sheet":"達成度自己評価表表紙","index":17,"n_rows":6,"n_cols":1,"rows_kept":6,"cut":false,"hidden":false,"merged":[[5,0,5,14],[4,0,4,14],[1,0,1,14],[0,0,0,14],[2,0,2,14],[3,0,3,14]]}
[]
["達成度自己評価表"]
[]
["令和４年度入学生用"]
[]
["　これ以降のワークシートは学習・教育到達目標ごとの達成度自己評価表です．先の，語学，教養，専門，科目外のワークシートの背景色が黄色の部分に入力した内容にしたがって，達成率と換算成績点を自動計算します．その計算方法は各ワークシート内に明記していますので，これを参考にして高い成績を取るようにして下さい．"]

{"sheet":"【 教養 】","index":18,"n_rows":17,"n_cols":8,"rows_kept":17,"cut":false,"hidden":false,"merged":[[0,0,0,7],[2,0,2,7],[3,0,3,7],[1,0,1,7],[5,2,6,2],[4,0,4,7],[5,7,6,7],[5,0,6,1],[6,5,6,6],[5,3,5,6],[16,3,21,7],[14,0,15,0],[14,3,14,7],[15,3,15,7],[17,0,21,2],[13,0,13,7],[7,6,9,6],[12,0,12,7],[7,0,9,0],[7,5,9,5],[10,0,10,1]]}
["平成15年12月11日制定，令和4年3月3１日改訂"]
[]
["Ａ. 豊かな教養と地球的視点を備え，技術者の社会的責任を認識できる．"]
["　（１）スポーツや芸術に慣れ親しみ，人間性豊かな思考のできる教養を備える．【 教養 】"]
[]
["達成度評価対象",null,"評価基準","自己評価",null,null,null,"今期の達成度目標"]
[null,null,null,"達成度","成績","成績加点項目"]
["基本教養科目","｢人と社会｣に属する科目","2単位取得",{"$f":"IF(SUM(教養!R69:R94)>=2,1,0)","v":1},{"$f":"IF(SUM(教養!R69:R94)=0,0,SUM(教養!T69:T94)/SUM(教養!R69:R94)*2)","v":30},"学内外のスポーツサークル等に属してスポーツ活動を行う．（加点は１点／６ヶ月）",0,{"$f":"IF((SUM(教養!R69:R94)+SUM(教養!U69:U94))>=2,1,0)","v":1}]
[null,"｢人と文化｣に属する科目","2単位取得",{"$f":"IF(SUM(教養!R95:R117)>=2,1,0)","v":1},{"$f":"IF(SUM(教養!R95:R117)=0,0,SUM(教養!T95:T117)/SUM(教養!R95:R117)*2)","v":20},null,null,{"$f":"IF((SUM(教養!R95:R117)+SUM(教養!U95:U117))>=2,1,0)","v":1}]
[null,"｢人と自然｣に属する科目","2単位取得",{"$f":"IF(SUM(教養!R118:R142)>=2,1,0)","v":1},{"$f":"IF(SUM(教養!R118:R142)=0,0,SUM(教養!T118:T142)/SUM(教養!R118:R142)*2)","v":20},null,null,{"$f":"IF((SUM(教養!R118:R142)+SUM(教養!U118:U142))>=2,1,0)","v":1}]
[null,null,"合 計",{"$f":"SUM($D$8:$D$10)","v":3},{"$f":"SUM($E$8:$E$10)","v":70},"加点",{"$f":"G8","v":0},{"$f":"SUM($H$8:$H$10)","v":3}]
[null,null,"満点",3,90]
[]
[]
["自己評価","達成率 (%)",{"$f":"INT($D$11/3*100+0.5)","v":100},"・達成率は上表の『達成度』の合計／３×１００（％）．"]
[null,"換算成績点",{"$f":"INT(($E$11/90*100)+$G$11+0.5)","v":78}]
["今期の目標","達成率 (%)",{"$f":"INT($H$11/3*100+0.5)","v":100},"・上表中の『成績』は達成度の各区分に属する全ての科目の取得単位の成績の平均．\n・『成績』の満点は，３×３０＝９０．\n・学内外のスポーツサークル等に属してスポーツ活動を行った場合に加点する．加点は，６ヶ月で１点．\n・換算成績点は，（成績合計／９０×１００+加減点）．"]

{"sheet":"【 視点 】","index":19,"n_rows":18,"n_cols":8,"rows_kept":18,"cut":false,"hidden":false,"merged":[[6,0,7,0],[9,1,9,2],[17,3,22,7],[15,3,15,7],[16,3,16,7],[18,0,22,2],[11,0,12,1],[13,0,13,7],[0,0,0,7],[15,0,16,0],[14,0,14,7],[3,0,3,7],[6,3,6,6],[1,0,1,7],[7,5,7,6],[8,5,9,5],[8,6,9,6],[5,0,5,7],[2,0,2,7],[6,7,7,7],[10,1,10,2],[6,1,7,2],[8,1,8,2],[4,0,4,7]]}
[]
["Ａ. 豊かな教養と地球的視点を備え，技術者の社会的責任を認識できる．"]
["　（２）地球的視点で物事を考える素養と能力を有する．【 視点 】"]
[]
["解説 ： ここで言う「地球的視点で物事を考える」とは，「歴史や文化，習慣や風土，あるいは価値観などの多様性を学ぶことで，幸せや豊かさの概念が多岐に渡ることを認識して，物事を考える」という意味である．特に，環境問題は，自身と他者の幸せや豊かさの概念がぶつかり合う問題であり，本教育プログラムでは，環境マネジメント活動を通じてこの能力を涵養することを意図している．"]
[]
["達成度評価対象","評価基準",null,"自己評価",null,null,null,"今期の\n達成度目標"]
[null,null,null,"達成度","成績","成績加減点項目"]
["工芸科学教養科目","8単位以上取得",null,{"$f":"IF(SUM(教養!R5:R68)>=8,1,SUM(教養!R5:R68)/8)","v":1},{"$f":"IF(SUM(教養!R5:R68)=0,0,SUM(教養!T5:T68)/SUM(教養!R5:R68)*2)","v":30},"人間教養科目の総取得単位数",{"$f":"SUM(教養!R5:R148)","v":18},{"$f":"IF((SUM(教養!R5:R68)+SUM(教養!U5:U68))>=8,1,(SUM(教養!R5:R68)+SUM(教養!U5:U68))/8)","v":1}]
["人間教養科目","上記を含め２２単位以上取得",null,{"$f":"IF(SUM(教養!R5:R148)>=22,1,SUM(教養!R5:R148)/22)","v":0.81818181818181823},{"$f":"IF(SUM(教養!R5:R148)=0,0,SUM(教養!T5:T148)/SUM(教養!R5:R148)*2)","v":26.666666666666668},null,null,{"$f":"IF((SUM(教養!R5:R148)+SUM(教養!U5:U148))>=22,1,(SUM(教養!R5:R148)+SUM(教養!U5:U148))/22)","v":1}]
["《エンジニアのためのリテラシー》","与えられたテーマを地球的視点から考えて調査，考察し，プレゼンテーション資料を作成する課題に合格して，単位を取得すること．",null,{"$f":"専門!R5/2+専門!R6","v":1},{"$f":"専門!T5+専門!T6","v":30},"――――","――",{"$f":"(専門!R5/2+専門!R6)+(専門!U5/2+専門!U6)","v":1}]
[null,null,"合 計",{"$f":"SUM($D$9:$D$11)","v":2.8181818181818183},{"$f":"SUM($E$9:$E$11)","v":86.666666666666671},"取得単位数合計",{"$f":"$G$9","v":18},{"$f":"SUM($H$9:$H$11)","v":3}]
[null,null,"満点",3,90,"加減点 (取得単位数合計-22単位）",{"$f":"($G$12-22)","v":-4}]
[]
[]
["自己評価","達成率 (%)",{"$f":"INT($D$12/3*100+0.5)","v":94},"・達成率は上表の『達成度』の合計／３×１００（％）．"]
[null,"換算成績点",{"$f":"INT($E$12/90*100+$G$13+0.5)","v":92}]
["今期の目標","達成率 (%)",{"$f":"INT($H$12/3*100+0.5)","v":100},"・上表中の『成績』は達成度の各区分に属する全ての科目の取得単位の成績の平均．\n・『成績』の満点は，３×３０点＝９０点．\n・人間教養科目の取得単位数が多い場合に加点する．加減点計算式は，（取得単位数-２２単位）．\n・換算成績点は，（成績合計／９０×１００+加減点）．"]

{"sheet":"【 倫理 】","index":20,"n_rows":18,"n_cols":7,"rows_kept":18,"cut":false,"hidden":false,"merged":[[5,0,5,6],[8,4,9,4],[6,0,7,0],[13,0,13,6],[0,0,0,6],[1,0,1,6],[2,0,2,6],[4,0,4,6],[3,0,3,6],[6,6,7,6],[7,4,7,5],[15,3,15,6],[6,1,7,1],[6,2,6,5],[8,5,9,5],[17,3,23,6],[18,0,23,2],[16,3,16,6],[14,0,14,6],[15,0,16,0],[8,1,9,1]]}
[]
["A. 豊かな教養と地球的視点を備え，技術者の社会的責任を認識できる．"]
["　（３） 科学技術の発展とそれが自然環境，生命，社会などに及ぼす効果や影響を理解できる．【 倫理 】"]
[]
["解説 ： 技術者の社会に対する責任（技術者倫理）と貢献について理解することも含む．"]
[]
["達成度評価対象","評価基準","自己評価",null,null,null,"今期の達成度目標"]
[null,null,"達成度","成績","成績加点項目"]
["《機械工学実験Ⅰ》","技術者倫理に対する講義を受けた後，少人数の班に分かれ，具体的に与えられる事例に基づいて技術者の社会に対する責任と貢献に関して討論して考えをまとめてレポートを提出し，これに合格して，単位を取得すること．",{"$f":"専門!R77","v":0},{"$f":"専門!T77","v":0},"工芸科学教養科目の中の「科学技術と環境・倫理」に属する科目の取得単位数",0,{"$f":"専門!R77+専門!U77","v":0}]
["《機械工学実験Ⅱ》",null,{"$f":"専門!R78","v":0},{"$f":"専門!T78","v":0},null,null,{"$f":"専門!R78+専門!U78","v":0}]
["環境安全マネジメント活動","環境安全マネジメント講習に出席し，少なくとも1年間環境安全マネジメントプログラム実行計画書にしたがって活動していること．",{"$f":"科目外!D4","v":0},"――","――――","――",{"$f":"(科目外!D4+科目外!G4)","v":0}]
[null,"合 計",{"$f":"SUM($C$9:$C$11)","v":0},{"$f":"SUM($D$9:$D$10)","v":0},"加点合計",{"$f":"F9","v":0},{"$f":"SUM($G$9:$G$11)","v":0}]
[null,"満点",3,90]
[]
[]
["自己評価","達成率 (%)",{"$f":"INT($C$12/3*100+0.5)","v":0},"・達成率は上表の『達成度』の合計／３×１００（％）．"]
[null,"換算成績点",{"$f":"INT($D$12/90*100+$F$12+0.5)","v":0}]
["今期の目標","達成率 (%)",{"$f":"INT($G$12/3*100+0.5)","v":0},"・上表中の『成績』は達成度の各区分に属する全ての科目の取得単位の成績の平均．\n・『成績』の満点は，３×３０点＝９０点．\n・工芸科学教養科目の中の「科学技術と環境・倫理」に属する科目の取得単位数．加点は取得単位数．\n・換算成績点は，（成績合計／９０×１００+加減点）．"]

{"sheet":"【 基礎 】","index":21,"n_rows":22,"n_cols":9,"rows_kept":22,"cut":false,"hidden":false,"merged":[[7,0,9,0],[7,2,9,2],[4,2,6,2],[5,3,6,3],[5,5,6,5],[4,0,6,0],[22,0,25,2],[18,0,18,8],[10,0,12,0],[10,2,12,2],[15,0,16,2],[16,6,16,8],[21,3,25,8],[20,3,20,8],[19,0,20,0],[17,0,17,8],[19,3,19,8],[0,0,0,8],[5,4,6,4],[2,0,2,8],[1,0,1,8],[3,0,3,8],[5,6,5,7],[4,8,6,8],[4,3,4,7],[4,1,6,1]]}
[]
["Ｂ. 幅広い基礎学力と専門知識を備える．"]
["　（１） 数学・物理・情報技術などの基礎学力を有する．【 基礎 】"]
[]
["細　　目","達成度評価対象","評価基準","自己評価",null,null,null,null,"今期の達成度目標"]
[null,null,null,"取得年次","達成度","成績","成績減点項目"]
[null,null,null,null,null,null,"開講年次","減点（左記の開講年次より遅れて単位取得した場合，減点－１）"]
["（ａ）数学の基礎を習得","基礎解析Ⅰ","単位取得",{"$f":"専門!S7","v":1},{"$f":"専門!R7/2","v":1},{"$f":"専門!T7","v":20},1,{"$f":"IF(OR(($D$8=0),(($G$8-$D$8)<0)),-1,0)","v":0},{"$f":"(専門!R7+専門!U7)/2","v":1}]
[null,"線形代数学Ⅰ",null,{"$f":"専門!S9","v":1},{"$f":"専門!R9/2","v":1},{"$f":"専門!T9","v":20},1,{"$f":"IF(OR(($D$9=0),(($G$9-$D$9)<0)),-1,0)","v":0},{"$f":"(専門!R9+専門!U9)/2","v":1}]
[null,"統計数理",null,{"$f":"専門!S15","v":2},{"$f":"専門!R15/2","v":1},{"$f":"専門!T15","v":20},2,{"$f":"IF(OR(($D$10=0),(($G$10-$D$10)<0)),-1,0)","v":0},{"$f":"(専門!R15+専門!U15)/2","v":1}]
["（ｂ）物理学の基礎を習得","工業力学Ⅰ","単位取得",{"$f":"専門!S62","v":1},{"$f":"専門!R62/2","v":1},{"$f":"専門!T62","v":20},1,{"$f":"IF(OR(($D$11=0),(($G$11-$D$11)<0)),-1,0)","v":0},{"$f":"(専門!R62+専門!U62)/2","v":1}]
[null,"工業力学Ⅱ",null,{"$f":"専門!S63","v":1},{"$f":"専門!R63/2","v":1},{"$f":"専門!T63","v":20},1,{"$f":"IF(OR(($D$12=0),(($G$12-$D$12)<0)),-1,0)","v":0},{"$f":"(専門!R63+専門!U63)/2","v":1}]
[null,"物理学実験法及び基礎実験",null,{"$f":"専門!S30","v":2},{"$f":"専門!R30/2","v":1},{"$f":"専門!T30","v":30},2,{"$f":"IF(OR(($D$13=0),(($G$13-$D$13)<0)),-1,0)","v":0},{"$f":"(専門!R30+専門!U30)/2","v":1}]
["（ｃ）情報技術の基礎を習得","データサイエンス","単位取得",{"$f":"専門!S73","v":0},{"$f":"専門!R73","v":0},{"$f":"専門!T73","v":0},3,{"$f":"IF(OR(($D$14=0),(($G$14-$D$14)<0)),-1,0)","v":-1},{"$f":"(専門!R73+専門!U73)","v":0}]
["（d）自然科学の基礎を習得","専門基礎科目","上記(a)と(b)に記載された必修科目8単位と選択必修科目を含め24単位以上を取得","――",{"$f":"IF(SUM(専門!R7:R61)>=24,1,SUM(専門!R7:R61)/24)","v":0.33333333333333331},{"$f":"IF((SUM(専門!R7:R61)-SUM($E$8:$E$10)-$E$13)=0,0,(SUM(専門!T7:T61)-SUM($F$8:$F$10)-$F$13)/(SUM(専門!R7:R61)-SUM($E$8:$E$10)-$E$13))","v":0},"――","――――",{"$f":"IF((SUM(専門!R7:R61)+SUM(専門!U7:U61))>=24,1,(SUM(専門!R7:R61)+SUM(専門!U7:U61))/24)","v":0.58333333333333337}]
[null,null,null,"合計",{"$f":"SUM($E$8:$E$15)","v":6.333333333333333},{"$f":"SUM($F$8:$F$15)","v":130},"減点合計",{"$f":"SUM($H$8:$H$14)","v":-1},{"$f":"SUM($I$8:$I$15)","v":6.583333333333333}]
[null,null,null,"満点",8,240]
[]
[]
["自己評価","達成率 (%)",{"$f":"INT($E$16/8*100+0.5)","v":79},"・達成率は上表の『達成度』の合計／8×１００（％）．"]
[null,"換算成績点",{"$f":"INT($F$16/240*100+$H$16+0.5)","v":53}]
["今期の目標","達成率 (%)",{"$f":"INT($I$16/8*100+0.5)","v":82},"・上表中の『成績』は達成度の各区分に属する全ての科目の取得単位の成績の平均．\n・『成績』の満点は，８×３０点＝２４０点．\n・開講年次より遅れて単位取得した場合には１点減点．\n・換算成績点は，（成績合計／２４０×１００+減点合計）．"]

{"sheet":"【 専門 】","index":22,"n_rows":28,"n_cols":9,"rows_kept":28,"cut":false,"hidden":false,"merged":[[5,0,5,8],[9,0,10,0],[11,0,12,0],[7,6,7,7],[6,0,8,0],[6,1,8,1],[6,8,8,8],[6,2,8,2],[9,2,10,2],[11,2,12,2],[7,5,8,5],[6,3,6,7],[7,3,8,3],[7,4,8,4],[0,0,0,8],[1,0,1,8],[2,0,2,8],[4,0,4,8],[3,0,3,8],[27,3,31,8],[28,0,31,2],[13,0,14,0],[15,0,16,0],[25,3,25,8],[26,3,26,8],[18,0,19,0],[18,2,19,2],[25,0,26,0],[22,6,22,8],[13,2,14,2],[24,0,24,8],[21,0,22,2],[23,0,23,8],[15,2,16,2]]}
[]
["B. 幅広い基礎学力と専門知識を備える．"]
["　（２） 伝統的機械工学の専門知識を修得している．【 専門 】"]
[]
["解説 ： ここで言う「伝統的機械工学の専門知識」とは，長年，機械工学の根幹をなしてきた力学と機械設計の知識であり，現代の機械技術者にとっても習得しなければならない基本知識である．"]
[]
["細　　目","達成度評価対象","評価基準","自己評価",null,null,null,null,"今期の達成度\n目標"]
[null,null,null,"取得年次","達成度","成績","成績減点項目"]
[null,null,null,null,null,null,"開講年次","減点（左記の開講年次より遅れて単位取得した場合，減点－１）"]
["（ａ）材料力学の知識を習得","材料力学Ⅰ及び演習","単位取得",{"$f":"専門!S64","v":1},{"$f":"専門!R64/2","v":1},{"$f":"専門!T64","v":20},1,{"$f":"IF(OR(($D$10=0),(($G$10-$D$10)<0)),-1,0)","v":0},{"$f":"(専門!R64+専門!U64)/2","v":1}]
[null,"材料力学Ⅱ及び演習",null,{"$f":"専門!S65","v":0},{"$f":"専門!R65/2","v":0},{"$f":"専門!T65","v":0},2,{"$f":"IF(OR(($D$11=0),(($G$11-$D$11)<0)),-1,0)","v":-1},{"$f":"(専門!R65+専門!U65)/2","v":1}]
["（ｂ）熱力学の知識を習得","熱力学Ⅰ及び演習","単位取得",{"$f":"専門!S66","v":0},{"$f":"専門!R66/2","v":0},{"$f":"専門!T66","v":0},2,{"$f":"IF(OR(($D$12=0),(($G$12-$D$12)<0)),-1,0)","v":-1},{"$f":"(専門!R66+専門!U66)/2","v":1}]
[null,"熱力学Ⅱ及び演習",null,{"$f":"専門!S67","v":0},{"$f":"専門!R67/2","v":0},{"$f":"専門!T67","v":0},2,{"$f":"IF((OR(($D$13=0),($G$13-$D$13)<0)),-1,0)","v":-1},{"$f":"(専門!R67+専門!U67)/2","v":1}]
["（ｃ）流体力学の知識を習得","流体力学Ⅰ及び演習","単位取得",{"$f":"専門!S70","v":0},{"$f":"専門!R70/2","v":0},{"$f":"専門!T70","v":0},2,{"$f":"IF(OR(($D$14=0),(($G$14-$D$14)<0)),-1,0)","v":-1},{"$f":"(専門!R70+専門!U70)/2","v":1}]
[null,"流体力学Ⅱ及び演習",null,{"$f":"専門!S71","v":0},{"$f":"専門!R71/2","v":0},{"$f":"専門!T71","v":0},3,{"$f":"IF((OR(($D$15=0),($G$15-$D$15)<0)),-1,0)","v":-1},{"$f":"(専門!R71+専門!U71)/2","v":0}]
["（ｄ）機械力学の知識を習得","機械力学Ⅰ及び演習","単位取得",{"$f":"専門!S68","v":0},{"$f":"専門!R68/2","v":0},{"$f":"専門!T68","v":0},2,{"$f":"IF(OR(($D$16=0),(($G$16-$D$16)<0)),-1,0)","v":-1},{"$f":"(専門!R68+専門!U68)/2","v":1}]
[null,"機械力学Ⅱ及び演習",null,{"$f":"専門!S69","v":0},{"$f":"専門!R69/2","v":0},{"$f":"専門!T69","v":0},2,{"$f":"IF(OR(($D$17=0),(($G$17-$D$17)<0)),-1,0)","v":-1},{"$f":"(専門!R69+専門!U69)/2","v":1}]
["（ｅ）設計法の知識を習得","《創造設計製図演習》","単位取得",{"$f":"IF(学習・教育到達目標と基本項目!C36=1,専門!S76,専門!S101)","v":0},{"$f":"IF(学習・教育到達目標と基本項目!C36=1,専門!R76,専門!R101)","v":0},{"$f":"IF(学習・教育到達目標と基本項目!C36=1,専門!T76,専門!T101)","v":0},3,{"$f":"IF(OR(($D$18=0),(($G$18-$D$18)<0)),-1,0)","v":-1},{"$f":"(IF(学習・教育到達目標と基本項目!C36=1,専門!R76,専門!R101)+IF(学習・教育到達目標と基本項目!C36=1,専門!U76,専門!U101))/2","v":0}]
["（ｆ）製図法と規則を習得","機械製図法Ⅰ","単位取得",{"$f":"専門!S74","v":0},{"$f":"専門!R74/2","v":0},{"$f":"専門!T74","v":0},2,{"$f":"IF(OR(($D$19=0),(($G$19-$D$19)<0)),-1,0)","v":-1},{"$f":"(専門!R74+専門!U74)/2","v":1}]
[null,"機械製図法Ⅱ",null,{"$f":"専門!S75","v":0},{"$f":"専門!R75/2","v":0},{"$f":"専門!T75","v":0},2,{"$f":"IF(OR(($D$20=0),(($G$20-$D$20)<0)),-1,0)","v":-1},{"$f":"(専門!R75+専門!U75)/2","v":1}]
["（ｇ）加工法の知識を習得","《機械加工法及び実習》","単位取得",{"$f":"専門!S72","v":0},{"$f":"専門!R72/2","v":0},{"$f":"専門!T72","v":0},2,{"$f":"IF(OR(($D$21=0),(($G$21-$D$21)<0)),-1,0)","v":-1},{"$f":"(専門!R72+専門!U72)/2","v":0}]
[null,null,null,"合計",{"$f":"SUM($E$10:$E$21)","v":1},{"$f":"SUM($F$10:$F$21)","v":20},"減点合計",{"$f":"SUM($H$10:$H$21)","v":-11},{"$f":"SUM($I$10:$I$21)","v":9}]
[null,null,null,"満点",12,360]
[]
[]
["自己評価","達成率 (%)",{"$f":"INT($E$22/12*100+0.5)","v":8},"・達成率は上表の『達成度』の合計／12×１００（％）．"]
[null,"換算成績点",{"$f":"INT($F$22/360*100+$H$22+0.5)","v":-5}]
["今期の目標","達成率 (%)",{"$f":"INT($I$22/12*100+0.5)","v":75},"・上表中の『成績』は達成度の各区分に属する科目の取得単位の成績．\n・『成績』の満点は，１２×３０点＝３６０点．\n・開講年次より遅れて単位取得した場合には１点減点．\n・換算成績点は，（成績合計／３６０×１００+減点合計）．"]

{"sheet":"【 開発 】(a)","index":23,"n_rows":15,"n_cols":8,"rows_kept":15,"cut":false,"hidden":false,"merged":[[14,0,17,1],[14,2,17,7],[13,0,13,7],[4,0,4,7],[5,0,5,7],[6,1,7,1],[6,0,7,0],[6,7,7,7],[12,0,12,7],[0,0,0,7],[1,0,1,7],[2,0,2,7],[3,0,3,7],[10,0,11,1],[11,5,11,7],[8,0,9,0],[7,5,7,6],[6,3,6,6],[6,2,7,2]]}
[]
["Ｂ. 幅広い基礎学力と専門知識を備える．"]
["　（３） 幅広い専門知識を応用して，時代や社会の変化と要求に対応した新たな機械システムを構築できる能力を有する．【 開発 】"]
[]
["解説 ： ｢新たな機械システムを構築できる能力｣とは，現在の課題や問題を設定・発見する能力や，これらを解決するための構想力・創造力である．"]
[]
["細　　目","達成度評価対象","評価基準","自己評価",null,null,null,"今期の達成度目標"]
[null,null,null,"達成度","成績","成績減点項目"]
["（ａ）機械システムに関する幅広い専門知識を習得","課程専門科目に属する選択科目","20単位以上取得",{"$f":"IF(SUM(専門!R62:R109)>=20,1,SUM(専門!R62:R109)/20)","v":0.3},{"$f":"IF(SUM(専門!R62:R109)=0,0,SUM(専門!T62:T109)/SUM(専門!R62:R109)*2)","v":20},"課程専門科目に属する選択科目の総取得単位数",{"$f":"SUM(専門!R62:R109)","v":6},{"$f":"IF((SUM(専門!R62:R109)+SUM(専門!U62:U109))>=20,1,(SUM(専門!R62:R109)+SUM(専門!U62:U109))/20)","v":1}]
[null,"専門教育科目","必修科目，選択必修科目を含めて90単位以上を取得",{"$f":"IF(SUM(専門!R5:R109)>=90,1,SUM(専門!R5:R109)/90)","v":0.17777777777777778},"――","――――――――","――",{"$f":"IF((SUM(専門!R5:R109)+SUM(専門!U5:U109))>=90,1,(SUM(専門!R5:R109)+SUM(専門!U5:U109))/90)","v":0.42222222222222222}]
[null,null,"合 計",{"$f":"SUM($D$9+$D$10)","v":0.47777777777777775},{"$f":"$E$9","v":20},"加減点 （課程専門科目に属する選択科目の総取得単位数－２０単位）",{"$f":"($G$9-20)","v":-14},{"$f":"SUM($H$9+$H$10)","v":1.4222222222222223}]
[null,null,"満点",2,60]
[]
[]
[null,null,"・上表中の『成績』は達成度の各区分に属する全ての科目の取得単位の成績の平均．\n・『成績』の満点は，２×３０点＝６０点．\n・課程専門科目に属する選択科目の取得単位数が多い場合に加点する．加減点計算式は，（取得単位数-２０単位）．"]

{"sheet":"【 開発 】(b)","index":24,"n_rows":19,"n_cols":9,"rows_kept":19,"cut":false,"hidden":false,"merged":[[0,0,0,8],[1,0,1,8],[2,0,2,8],[3,0,3,8],[4,0,4,8],[18,0,20,1],[18,2,20,8],[6,2,7,3],[6,4,6,7],[7,6,7,7],[17,0,17,8],[8,2,13,2],[8,1,13,1],[8,6,13,6],[16,0,16,8],[15,6,15,8],[14,0,15,2],[5,0,5,8],[8,7,13,7],[8,0,13,0],[6,8,7,8],[6,0,7,0],[6,1,7,1]]}
[]
["Ｂ. 幅広い基礎学力と専門知識を備える．"]
["　（３） 幅広い専門知識を応用して，時代や社会の変化と要求に対応した新たな機械システムを構築できる能力を有する．【 開発 】"]
[]
["解説 ： ｢新たな機械システムを構築できる能力｣とは，現在の課題や問題を設定・発見する能力や，これらを解決するための構想力・創造力である．"]
[]
["細　　目","達成度評価対象","評価基準",null,"自己評価",null,null,null,"今期の達成度目標"]
[null,null,null,null,"達成度","成績","成績\n加点項目"]
["（ｂ）物づくりに関する最新の状況を知っている．","機械工学課程対象の工場見学，学術講演会及びインターンシップA，インターンシップB，ものづくりインターンシップⅠ，ものづくりインターンシップⅡ","工場見学，学術講演会のいずれかに参加するか，あるいはインターンシップA，インターンシップB，ものづくりインターンシップⅠ，ものづくりインターンシップⅡのいずれかの単位を取得すること．","工場見学",{"$f":"科目外!D7","v":0},"――","左記以外の工場見学，学術講演会等に出席した回数（１点／回）",{"$f":"科目外!K7","v":0},{"$f":"(科目外!D7+科目外!G7)","v":0}]
[null,null,null,"学術講演会",{"$f":"科目外!D9","v":0},"――",null,null,{"$f":"(科目外!D9+科目外!G9)","v":0}]
[null,null,null,"インターンシップA",{"$f":"専門!R37","v":0},null,null,null,{"$f":"(専門!R37+専門!U37)","v":0}]
[null,null,null,"インターンシップB",{"$f":"専門!R38/2","v":0},null,null,null,{"$f":"(専門!R38+専門!U38)/2","v":0}]
[null,null,null,"ものづくりインターンシップⅠ",{"$f":"専門!R103/4","v":0},null,null,null,{"$f":"(専門!R103+専門!U103)/4","v":0}]
[null,null,null,"ものづくりインターンシップⅡ",{"$f":"専門!R104/4","v":0},null,null,null,{"$f":"(専門!R104+専門!U104)/4","v":0}]
[null,null,null,"合 計",{"$f":"SUM($E$9:$E$14)","v":0},null,"合 計",{"$f":"$H$9","v":0},{"$f":"SUM($I$9:$I$14)","v":0}]
[null,null,null,"満点",2,60]
[]
[]
[null,null,"・上表中の『成績』は達成度の各区分に属する科目の取得単位の成績．\n・『成績』の満点は，２×３０点＝6０点．\n・機械工学課程対象の工場見学，学術講演会等に出席した回数に応じて加点する．加点は1点／回．"]

{"sheet":"【 開発 】(c)","index":25,"n_rows":20,"n_cols":9,"rows_kept":20,"cut":false,"hidden":false,"merged":[[13,6,13,8],[9,0,11,0],[7,3,8,3],[7,4,8,4],[9,2,10,2],[12,0,13,2],[6,8,8,8],[6,3,6,7],[6,0,8,0],[5,0,5,8],[7,6,7,7],[6,1,8,1],[6,2,8,2],[7,5,8,5],[0,0,0,8],[2,0,2,8],[3,0,3,8],[4,0,4,8],[1,0,1,8],[19,3,25,8],[19,0,25,2],[18,3,18,8],[14,0,14,8],[16,0,17,0],[15,0,15,8],[16,3,17,8]]}
[]
["Ｂ. 幅広い基礎学力と専門知識を備える．"]
["　（３） 幅広い専門知識を応用して，時代や社会の変化と要求に対応した新たな機械システムを構築できる能力を有する．【 開発 】"]
[]
["解説 ： ｢新たな機械システムを構築できる能力｣とは，現在の課題や問題を設定・発見する能力や，これらを解決するための構想力・創造力である．"]
[]
["細　　目","達成度評価対象","評価基準","自己評価",null,null,null,null,"今期の達成度目標"]
[null,null,null,"取得年次","達成度","成績","成績減点項目"]
[null,null,null,null,null,null,"開講年次","減点（左記の開講年次より遅れて単位取得した場合，減点－１）"]
["（ｃ）実験等を遂行して，その結果を解析し，それを工学的に考察する能力を有している．","《機械工学実験Ⅰ》","全てのテーマについて実験を行って，それらの結果を工学的に考察した報告書を作成する課題に合格して，単位を取得すること．",{"$f":"専門!S77","v":0},{"$f":"専門!R77","v":0},{"$f":"専門!T77","v":0},3,{"$f":"IF(OR(($D$10=0),(($G$10-$D$10)<0)),-1,0)","v":-1},{"$f":"(専門!R77+専門!U77)","v":0}]
[null,"《機械工学実験Ⅱ》",null,{"$f":"専門!S78","v":0},{"$f":"専門!R78","v":0},{"$f":"専門!T78","v":0},3,{"$f":"IF(OR(($D$11=0),(($G$11-$D$11)<0)),-1,0)","v":-1},{"$f":"(専門!R78+専門!U78)","v":0}]
[null,"《卒業研究》","卒業研究の評価項目の1つである｢実験等を遂行して，その結果を解析し，それを工学的に考察する能力｣に対する評価項目に合格して，単位を取得すること．",{"$f":"IF(学習・教育到達目標と基本項目!C36=1,専門!S97,専門!S106)","v":0},{"$f":"IF(学習・教育到達目標と基本項目!C36=1,専門!R97/8,専門!R106/8)","v":0},{"$f":"IF(学習・教育到達目標と基本項目!C36=1,専門!T97,専門!T106)","v":0},4,{"$f":"IF(OR(($D$12=0),(($G$12-$D$12)<0)),-1,0)","v":-1},{"$f":"(IF(学習・教育到達目標と基本項目!C36=1,専門!R97,専門!R106)+IF(学習・教育到達目標と基本項目!C36=1,専門!U97,専門!U106))/2","v":0}]
[null,null,null,"合計",{"$f":"SUM($E$10:$E$12)","v":0},{"$f":"SUM($F$10:$F$12)","v":0},"合計",{"$f":"SUM($H$10:$H$12)","v":-3},{"$f":"SUM($I$10:$I$12)","v":0}]
[null,null,null,"満点",3,90]
[]
[]
["自己評価","達成率 (%)",{"$f":"INT(('【 開発 】(a)'!D11+'【 開発 】(b)'!E15+'【 開発 】(c)'!E13)/7*100+0.5)","v":7},"・達成率は『達成度』の合計／７（＝満点は２＋２＋３）×１００（％）．"]
[null,"換算成績点",{"$f":"INT(('【 開発 】(a)'!E11+'【 開発 】(b)'!F15+'【 開発 】(c)'!F13)/210+'【 開発 】(a)'!G11+'【 開発 】(b)'!H15+'【 開発 】(c)'!H13+0.5)","v":-17}]
["今期の目標","達成率 (%)",{"$f":"INT(('【 開発 】(a)'!H11+'【 開発 】(b)'!I15+'【 開発 】(c)'!I13)/7*100+0.5)","v":20}]
[null,null,null,"・上表中の『成績』は達成度の各区分に属する科目の取得単位の成績．\n・『成績』の満点は，３×３０点＝９０点．\n・開講年次より遅れて単位取得した場合には１点減点．\n\n・『成績』の満点合計は，６０＋６０＋９０＝２１０．\n・換算成績点は，（成績合計／２１０×１００+加減点合計）．"]

{"sheet":"【 国際 】","index":26,"n_rows":22,"n_cols":8,"rows_kept":22,"cut":false,"hidden":false,"merged":[[20,0,27,3],[6,5,12,5],[21,4,27,7],[17,4,19,7],[16,0,16,7],[20,4,20,7],[13,0,14,1],[15,0,15,7],[6,6,12,6],[6,0,12,0],[14,5,14,7],[19,0,19,1],[17,0,18,1],[6,1,12,1],[0,0,0,7],[1,0,1,7],[2,0,2,7],[3,0,3,7],[4,0,5,0],[4,7,5,7],[4,1,5,2],[4,3,4,6],[5,5,5,6]]}
[]
["Ｃ. 国際的に通用する表現力と論理性を備える．"]
["　（１） 国際的な場でのコミュニケーション能力を有する．【 国際 】"]
[]
["達成度評価対象","評価基準",null,"自己評価",null,null,null,"今期の達成度目標"]
[null,null,null,"達成度","成績","成績加点項目"]
["言語教育科目","左記科目より必修6単位を含めて12単位以上を取得","Interactive English A",{"$f":"語学!R5","v":1},{"$f":"語学!T5","v":20},"外国語の資格試験等の受験回数（１点／回）",{"$f":"科目外!K11","v":1},{"$f":"SUM(語学!R5+語学!U5)","v":1}]
[null,null,"Interactive English B",{"$f":"語学!R6","v":1},{"$f":"語学!T6","v":20},null,null,{"$f":"SUM(語学!R6+語学!U6)","v":1}]
[null,null,"Career English Basic",{"$f":"語学!R7","v":1},{"$f":"語学!T7","v":20},null,null,{"$f":"SUM(語学!R7+語学!U7)","v":1}]
[null,null,"Academic English",{"$f":"語学!R8","v":1},{"$f":"語学!T8","v":20},null,null,{"$f":"SUM(語学!R8+語学!U8)","v":1}]
[null,null,"Career English Intermediate",{"$f":"語学!R9","v":0},{"$f":"語学!T9","v":0},null,null,{"$f":"SUM(語学!R9+語学!U9)","v":1}]
[null,null,"Career English Advanced",{"$f":"語学!R10","v":0},{"$f":"語学!T10","v":0},null,null,{"$f":"SUM(語学!R10+語学!U10)","v":1}]
[null,null,"上記の必修科目以外の言語教育科目",{"$f":"IF(SUM(語学!R11:R46)>=6,6,SUM(語学!R11:R46))","v":0},{"$f":"IF(SUM(教養!R11:R43)=0,0,SUM(教養!T11:T43)/SUM(教養!R11:R43))","v":13.75},null,null,{"$f":"SUM(語学!R11:R46)+SUM(語学!U11:U46)","v":5}]
[null,null,"合 計",{"$f":"SUM($D$7:$D$13)","v":4},{"$f":"SUM($E$7:$E$13)","v":93.75},"合 計",{"$f":"SUM($G$7+$G$11)","v":1},{"$f":"SUM($H$7:$H$13)","v":11}]
[null,null,"満点",12,360]
[]
[]
["自己評価",null,"達成率 (%)",{"$f":"INT($D$14/12*100+0.5)","v":33},"・『達成度』の満点は科目数１２．\n・達成率は上表の『達成度』の合計／12×１００（％）．"]
[null,null,"換算成績点",{"$f":"INT($E$14/360*100+$G$14+0.5)","v":27}]
["今期の目標",null,"達成率 (%)",{"$f":"INT($H$14/12*100+0.5)","v":92}]
[]
[null,null,null,null,"・上表中の『成績』は達成度の各区分に属する全ての科目の取得単位の成績の平均．\n・『成績』の満点は，１２×３０点＝３６０点．\n・外国語の資格試験等の受験回数１回につき１点加点\n・換算成績点は，（成績合計／３６０×１００+加点合計）．"]

{"sheet":"【 論理 】","index":27,"n_rows":18,"n_cols":8,"rows_kept":18,"cut":false,"hidden":false,"merged":[[0,0,0,7],[3,0,3,7],[4,0,6,0],[4,1,6,1],[5,4,6,4],[4,2,4,6],[1,0,1,7],[2,0,2,7],[14,0,15,0],[12,0,12,7],[4,7,6,7],[5,2,6,2],[17,0,23,2],[16,3,16,7],[11,5,11,7],[14,3,15,7],[17,3,23,7],[8,1,9,1],[10,0,11,1],[13,0,13,7],[5,3,6,3],[5,5,5,6]]}
[]
["Ｃ. 国際的に通用する表現力と論理性を備える．"]
["　（２） 日本語によって論理的な記述，発表，討論ができる．【 論理 】"]
[]
["達成度評価対象","評価基準","自己評価",null,null,null,null,"今期の達成度目標"]
[null,null,"取得年次","達成度","成績","成績減点項目"]
[null,null,null,null,null,"開講年次","減点（左記の開講年次より遅れて単位取得した場合，減点－１）"]
["《エンジニアのためのリテラシー》","論理的なプレゼンテーションと活発な討論を行う課題に合格して，単位を取得すること．",{"$f":"IF(学習・教育到達目標と基本項目!C36=1,専門!S5,専門!S6)","v":1},{"$f":"IF(学習・教育到達目標と基本項目!C36=1,専門!R5/2,専門!R6)","v":1},{"$f":"IF(学習・教育到達目標と基本項目!C36=1,専門!T5,専門!T6)","v":30},1,{"$f":"IF(OR(($C$8=0),(($F$8-$C$8)<0)),-1,0)","v":0},{"$f":"(専門!R5+専門!U5)/2+(専門!R6+専門!U6)","v":1}]
["《機械工学実験Ⅰ》","全ての実験テーマの報告書について，論理的に記述されているかどうかという評価項目に合格して，単位を取得すること．",{"$f":"専門!S77","v":0},{"$f":"専門!R77","v":0},{"$f":"専門!T77","v":0},3,{"$f":"IF(OR(($C$9=0),(($F$9-$C$9)<0)),-1,0)","v":-1},{"$f":"(専門!R77+専門!U77)","v":0}]
["《機械工学実験Ⅱ》",null,{"$f":"専門!S78","v":0},{"$f":"専門!R78","v":0},{"$f":"専門!T78","v":0},3,{"$f":"IF(OR(($C$10=0),(($F$10-$C$10)<0)),-1,0)","v":-1},{"$f":"(専門!R78+専門!U78)","v":0}]
[null,null,"合計",{"$f":"SUM($D$8:$D$10)","v":1},{"$f":"SUM($E$8:$E$10)","v":30},"合計",{"$f":"SUM($G$8:$G$10)","v":-2},{"$f":"SUM($H$8:$H$10)","v":1}]
[null,null,"満点",3,90]
[]
[]
["自己評価","達成率 (%)",{"$f":"INT($D$11/3*100+0.5)","v":33},"・達成率は上表の『達成度』の合計／３×１００（％）．"]
[null,"換算成績点",{"$f":"INT($E$11/90*100+$G$11+0.5)","v":31}]
["今期の目標","達成率 (%)",{"$f":"INT($H$11/3*100+0.5)","v":33}]
[null,null,null,"・上表中の『成績』は達成度の各区分に属する科目の取得単位の成績．\n・『成績』の満点は，３×３０点＝９０点．\n・開講年次より遅れて単位取得した場合には１点減点．\n・換算成績点は，（成績合計／９０×１００+減点合計）．"]

{"sheet":"【 自発 】","index":28,"n_rows":22,"n_cols":11,"rows_kept":22,"cut":false,"hidden":false,"merged":[[17,0,17,10],[16,2,16,3],[16,6,16,10],[15,0,16,1],[22,0,26,2],[21,3,26,10],[19,0,20,0],[18,0,18,10],[19,3,19,10],[20,3,20,10],[7,0,14,0],[7,6,10,6],[7,2,8,2],[9,2,10,2],[15,8,15,9],[15,2,15,3],[7,7,10,7],[9,8,10,8],[7,8,8,8],[7,1,14,1],[13,8,14,8],[11,6,14,6],[11,7,14,7],[11,2,12,2],[13,2,14,2],[11,8,12,8],[0,0,0,10],[1,0,1,10],[2,0,2,10],[3,0,3,10],[4,0,5,0],[4,8,4,10],[4,2,4,7],[4,1,5,1],[5,6,5,7]]}
[]
["Ｄ. 自律的に判断し，問題を解決する能力を有する．"]
["　（１） 継続的に学習し，能力開発を自発的に行うことができる．【 自発 】"]
[]
["達成度評価対象","評価基準","自己評価",null,null,null,null,null,"今期の達成度目標"]
[null,null,"年次","学期","達成度","成績\n（提出１点）","成績減点項目",null,"年次","学期","達成度"]
["全科目","卒業までの学習計画を立て，134単位以上を取得","――","――",{"$f":"IF((SUM(語学!R5:R46)+SUM(教養!R5:R148)+SUM(専門!R5:R109))>=134,1,(SUM(語学!R5:R46)+SUM(教養!R5:R148)+SUM(専門!R5:R109))/134)","v":0.28358208955223879},"――――","――――","――","――","――",{"$f":"IF((SUM(語学!R5:R46)+SUM(教養!R5:R148)+SUM(専門!R5:R109)+SUM(語学!U5:U46)+SUM(教養!U5:U148)+SUM(専門!U5:U109))>=134,1,(SUM(語学!R5:R46)+SUM(教養!R5:R148)+SUM(専門!R5:R109)+SUM(語学!U5:U46)+SUM(教養!U5:U148)+SUM(専門!U5:U109))/134)","v":0.60447761194029848}]
["達成度総合評価報告・学習計画書","学期ごとに達成度総合評価報告・学習計画書を提出",1,"前",{"$f":"科目外!F13","v":1},{"$f":"IF($E$8=1,1,0)","v":1},"現在までの達成度総合評価報告・学習計画書の総提出回数",{"$f":"科目外!K13","v":3},1,"前",{"$f":"IF((科目外!F13+科目外!I13)>=1,1,0)","v":1}]
[null,null,null,"後",{"$f":"科目外!F14","v":1},{"$f":"IF($E$9=1,1,0)","v":1},null,null,null,"後",{"$f":"IF((科目外!F14+科目外!I14)>=1,1,0)","v":1}]
[null,null,2,"前",{"$f":"科目外!F15","v":1},{"$f":"IF($E$10=1,1,0)","v":1},null,null,2,"前",{"$f":"IF((科目外!F15+科目外!I15)>=1,1,0)","v":1}]
[null,null,null,"後",{"$f":"科目外!F16","v":0},{"$f":"IF($E$11=1,1,0)","v":0},null,null,null,"後",{"$f":"IF((科目外!F16+科目外!I16)>=1,1,0)","v":1}]
[null,null,3,"前",{"$f":"科目外!F17","v":0},{"$f":"IF($E$12=1,1,0)","v":0},"減点 (留年すると減点－１）",{"$f":"IF((8-$H$8)<0,-1,0)","v":0},3,"前",{"$f":"IF((科目外!F17+科目外!I17)>=1,1,0)","v":0}]
[null,null,null,"後",{"$f":"科目外!F18","v":0},{"$f":"IF($E$13=1,1,0)","v":0},null,null,null,"後",{"$f":"IF((科目外!F18+科目外!I18)>=1,1,0)","v":0}]
[null,null,4,"前",{"$f":"科目外!F19","v":0},{"$f":"IF($E$14=1,1,0)","v":0},null,null,4,"前",{"$f":"IF((科目外!F19+科目外!I19)>=1,1,0)","v":0}]
[null,null,null,"後",{"$f":"科目外!F20","v":0},{"$f":"IF($E$15=1,1,0)","v":0},null,null,null,"後",{"$f":"IF((科目外!F20+科目外!I20)>=1,1,0)","v":0}]
[null,null,"合計",null,{"$f":"SUM($E$7:$E$15)","v":3.2835820895522385},{"$f":"SUM($F$8:$F$15)","v":3},"合計",{"$f":"$H$12","v":0},"合計",null,{"$f":"SUM($K$7:$K$15)","v":4.6044776119402986}]
[null,null,"満点",null,9,8]
[]
[]
["自己評価","達成率 (%)",{"$f":"INT($E$16/9*100+0.5)","v":36},"・達成率は上表の『達成度』の合計／９×１００（％）．"]
[null,"換算成績点",{"$f":"INT($F$16/8*100+$H$16+0.5)","v":38}]
["今期の目標","達成率 (%)",{"$f":"INT($K$16/9*100+0.5)","v":51},"・上表中の『成績』は，指定された年次・学期の達成度総合評価報告・学習計画書を提出すると１点．\n・『成績』の満点は，８点．\n・留年した場合には達成度総合評価報告・学習計画書提出１回につき１点減点．\n・換算成績点は，（成績合計／８×１００+減点合計）．"]

{"sheet":"【 計画 】","index":29,"n_rows":17,"n_cols":8,"rows_kept":17,"cut":false,"hidden":false,"merged":[[0,0,0,7],[1,0,1,7],[2,0,2,7],[3,0,3,7],[4,7,5,7],[17,0,21,2],[15,3,15,7],[10,0,11,0],[11,3,11,5],[16,3,21,7],[10,3,10,5],[12,0,12,7],[8,3,8,5],[9,3,9,5],[14,0,15,0],[14,3,14,7],[13,0,13,7],[7,0,8,0],[6,3,6,5],[5,3,5,6],[4,0,5,0],[4,1,5,1],[4,2,4,6]]}
[]
["D. 自律的に判断し，問題を解決する能力を有する．"]
["　（２） 種々の条件の下で問題解決の可能性を追求し，計画的に目標を達成することができる．【 計画 】"]
[]
["達成度評価対象","評価基準","自己評価",null,null,null,null,"今期の達成度目標"]
[null,null,"達成度","成績・成績加点項目"]
["《創造設計製図演習》","設定された制約条件の下で，自らのアイデアに基づいて新たな機械を構想・設計し，計画的に作業を進め，設計報告書・提出物を定められた期日までに提出して，単位を取得すること．",{"$f":"IF(学習・教育到達目標と基本項目!C36=1,専門!R76,専門!R101)/2","v":0},"創造設計製図演習の成績",null,null,{"$f":"IF(学習・教育到達目標と基本項目!C36=1,専門!T76,専門!T101)","v":0},{"$f":"(IF(学習・教育到達目標と基本項目!C36=1,専門!R76,専門!R101)+IF(学習・教育到達目標と基本項目!C36=1,専門!U76,専門!U101))/2","v":0}]
["《卒業研究》","教員の指導の下で年間４５０時間以上の研究を実施",{"$f":"IF($E$8>=450,1,0)","v":0},"卒業研究に要した総学習時間",{"$f":"科目外!D21","v":0},"成績加点 (総学習時間/450)×10",{"$f":"$E$8/450*10","v":0},{"$f":"IF((科目外!D21+科目外!G21)>=450,1,0)","v":0}]
[null,"卒業研究の評価項目の１つである｢種々の条件の下で問題解決の可能性を追求し，計画的に目標を達成することができる能力｣に対する評価項目に合格して，単位を取得すること．",{"$f":"IF(学習・教育到達目標と基本項目!C36=1,専門!R97,専門!R106)/8","v":0},"卒業研究の成績",null,null,{"$f":"IF(学習・教育到達目標と基本項目!C36=1,専門!T97,専門!T106)","v":0},{"$f":"(IF(学習・教育到達目標と基本項目!C36=1,専門!R97,専門!R106)+IF(学習・教育到達目標と基本項目!C36=1,専門!U97,専門!U106))/8","v":0}]
["卒業研究記録","卒業研究に関する記録を作成",{"$f":"科目外!D22","v":0},"―――――――――――",null,null,"――",{"$f":"(科目外!D22+科目外!G22)","v":0}]
[null,"合 計",{"$f":"SUM($C$7:$C$10)","v":0},"合 計",null,null,{"$f":"SUM($G$7:$G$9)","v":0},{"$f":"SUM($C$7:$C$10)","v":0}]
[null,"満点",4,"満点 （加点分を除く）",null,null,60]
[]
[]
["自己評価","達成率 (%)",{"$f":"INT($C$11/4*100+0.5)","v":0},"・達成率は上表の『達成度』の合計／４×１００（％）．"]
[null,"換算成績点",{"$f":"INT($G$11/60*100+$G$8+0.5)","v":0}]
["今期の目標","達成率 (%)",{"$f":"INT($H$11/4*100+0.5)","v":0},"・上表中の『成績』は，創造設計製図演習と卒業研究の成績の合計．\n・『成績』の満点は，６０点．\n・卒業研究の総学習時間が４５０時間を越える場合には，総学習時間／４５０×１０点を加点．\n・換算成績点は，（成績合計／６０×１００+加点合計）．"]

{"sheet":"【 ﾘｰﾀﾞｰ 】","index":30,"n_rows":21,"n_cols":9,"rows_kept":21,"cut":false,"hidden":false,"merged":[[5,0,5,8],[7,5,7,7],[7,2,8,2],[6,1,8,1],[6,0,8,0],[6,2,6,7],[6,8,8,8],[7,3,8,3],[7,4,8,4],[20,3,26,8],[21,0,26,2],[16,0,16,8],[4,0,4,8],[0,0,0,8],[1,0,1,8],[2,0,2,8],[3,0,3,8],[18,0,19,0],[17,0,17,8],[18,3,18,8],[11,1,12,1],[9,7,13,7],[19,3,19,8],[15,5,15,8],[14,0,15,1]]}
[]
["Ｄ. 自律的に判断し，問題を解決する能力を有する．"]
["　（３） チームを構成してリーダーシップを発揮できる．【 ﾘｰﾀﾞｰ 】"]
[]
["解説 ： ここで言うリーダーシップとは，演習や実習においては，班長としての役目を責任を持って果たすことで，それらの円滑な実施と目的を遂行する能力を，また，カリキュラム外では，他分野の人とチームを構成し，協働してチームの目的を遂行する能力を言う．特に，後者については，自発的学習としてこれを行うことを強く求める．"]
[]
["達成度評価対象","評価基準","自己評価",null,null,null,null,null,"今期の達成度目標"]
[null,null,"取得年次","達成度","成績","成績加減点項目"]
[null,null,null,null,null,"開講年次","減点（左記の開講年次より遅れて単位取得した場合，減点－１）","他分野の人と協働して目的を遂行するチームに参加した回数（1点/回で加点）"]
["工芸科学教養科目の「リーダーシップと経営戦略」に属する科目","2単位取得","――",{"$f":"IF(SUM(教養!R34:R44)>=2,1,0)","v":1},{"$f":"IF(SUM(教養!R34:R44)=0,0,SUM(教養!T34:T44)/SUM(教養!R34:R44)*2)","v":30},"――","――――",{"$f":"科目外!K23","v":0},{"$f":"IF((SUM(教養!R34:R44)+SUM(教養!U34:U44))>=2,1,0)","v":1}]
["《機械加工法及び実習》","少なくとも１回，班長として実習の円滑な実施に務め，その際に生じた問題点などを考察した班長レポートを提出し，これに合格して，単位を取得すること．",{"$f":"専門!S72","v":0},{"$f":"専門!R72/2","v":0},{"$f":"専門!T72","v":0},2,{"$f":"IF(OR(($C$11=0),(($F$11-$C$11)<0)),-1,0)","v":-1},null,{"$f":"(専門!R72+専門!U72)/2","v":0}]
["《機械工学実験Ⅰ》","少なくとも１回，班長として実験の円滑な実施とディスカッションの活発化に務め，その際に生じた問題点などを考察した班長レポートを提出し，これに合格して，単位を取得すること．",{"$f":"専門!S77","v":0},{"$f":"専門!R77","v":0},{"$f":"専門!T77","v":0},3,{"$f":"IF(OR(($C$12=0),(($F$12-$C$12)<0)),-1,0)","v":-1},null,{"$f":"(専門!R77+専門!U77)","v":0}]
["《機械工学実験Ⅱ》",null,{"$f":"専門!S78","v":0},{"$f":"専門!R78","v":0},{"$f":"専門!T78","v":0},3,{"$f":"IF(OR(($C$13=0),(($F$13-$C$13)<0)),-1,0)","v":-1},null,{"$f":"(専門!R78+専門!U78)","v":0}]
["《創造設計製図演習》","自身が責任を持って設計，製作した部分を，｢最終報告書｣において明らかにし，チームの円滑な運営がなされたかどうか，また，それに寄与したかどうかという評価項目に合格して，単位を取得すること．",{"$f":"IF(学習・教育到達目標と基本項目!C36=1,専門!S76,専門!S101)","v":0},{"$f":"IF(学習・教育到達目標と基本項目!C36=1,専門!R76,専門!R101)/2","v":0},{"$f":"IF(学習・教育到達目標と基本項目!C36=1,専門!T76,専門!T101)","v":0},3,{"$f":"IF(OR(($C$14=0),(($F$14-$C$14)<0)),-1,0)","v":-1},null,{"$f":"(IF(学習・教育到達目標と基本項目!C36=1,専門!R76,専門!R101)+IF(学習・教育到達目標と基本項目!C36=1,専門!U76,専門!U101))/2","v":0}]
[null,null,"合計",{"$f":"SUM($D$10:$D$14)","v":1},{"$f":"SUM($E$10:$E$14)","v":30},"合計",{"$f":"SUM($G$11:$G$14)","v":-4},{"$f":"$H$10","v":0},{"$f":"SUM($I$10:$I$14)","v":1}]
[null,null,"満点",5,150]
[]
[]
["自己評価","達成率 (%)",{"$f":"INT($D$15/5*100+0.5)","v":20},"・達成率は上表の『達成度』の合計／5×１００（％）．"]
[null,"換算成績点",{"$f":"INT($E$15/150*100+$G$15+$H$15+0.5)","v":16}]
["今期の目標","達成率 (%)",{"$f":"INT($I$15/5*100+0.5)","v":20},"・上表中の『成績』は，達成度の各区分に属する科目の取得単位の成績．\n・『成績』の満点は，１５０点．\n・開講年次より遅れて単位取得した場合には１点減点．\n・他分野の人と協働して目的を遂行するチームに参加した場合には，１回1点加点）\n・換算成績点は，（成績合計／１５０×１００+加減点合計）．"]

{"sheet":"変更履歴","index":31,"n_rows":36,"n_cols":3,"rows_kept":36,"cut":false,"hidden":false,"merged":[[17,2,19,2],[34,0,34,2],[35,0,35,2]]}
["【 学習・教育目標 】","【 達成度自己評価表 】","【 達成度自己評価報告書 】"]
["　　平成１４年　３月２７日　制定","　　平成１５年１２月１１日　制定","　　平成１５年１２月１１日　制定"]
["　　平成１５年１０月　２日　改訂","　　平成１６年　１月１５日　改訂","　　平成２５年　３月２７日　改訂"]
["　　平成２３年１２月２２日　改訂 （補足追加）","　　平成１７年　１月２７日　改訂","　　平成２６年　３月　４日　改訂"]
["　　平成２５年　３月２７日　改訂 （補足削除，解説追加）","　　平成１８年　３月３０日　改訂","　　平成２７年　１月２９日　改訂"]
[null,"　　平成１９年　３月２９日　改訂","　　平成２８年　４月　１日　改訂"]
["【 学習・教育到達目標 】","　　平成２１年　３月３０日　改訂"]
["　　平成２８年　６月　１日　改訂 （学習・教育目標を改称）","　　平成２２年　２月１８日　改訂","【 学習目標・学習計画書 】"]
["　　令和　２年　１月３０日　改定 （前，後文追加・解説一部変更）","　　平成２５年　３月２７日　改訂","　　平成１６年　３月１０日　制定"]
[null,"　　平成２６年　３月　４日　改訂","　　平成１９年　３月２９日　改訂"]
["【 達成度評価基準 】","　　平成２７年　１月２９日　改訂","　　平成２２年　２月１８日　改訂"]
["　　平成１５年１０月　２日　制定","　　平成２８年　４月　１日　改訂","　　平成２５年　３月２７日　改訂"]
["　　平成１６年　１月１５日　改訂","　　平成２８年　６月　１日　改訂","　　平成２６年　３月　４日　改訂"]
["　　平成１７年　１月２７日　改訂","　　平成２９年　３月３１日　改訂","　　平成２７年　１月２９日　改訂"]
["　　平成１８年　１月２６日　改訂","　　平成３１年　３月３１日　改訂","　　平成２８年　４月　１日　改訂"]
["　　平成１９年　１月１８日　改訂","　　令和　２年　1月３０日　改定"]
["　　平成２１年　３月３０日　改訂","　　令和　３年　３月３１日　改定","【 達成度総合評価報告・学習計画書 】"]
["　　平成２２年　２月１８日　改訂","　　令和　４年　３月３１日　改定","　　平成２８年　６月　１日　改訂\n　　　 （達成度自己評価報告書，\n　　　　学習目標・学習計画書を統合）"]
["　　平成２５年　３月２７日　改訂"]
["　　平成２５年　６月２７日　改訂"]
["　　平成２６年　３月　４日　改訂",null,"　　平成３１年　３月３１日　改訂"]
["　　平成２７年　１月２９日　改訂"]
["　　平成２８年　４月　１日　改訂"]
["　　令和　２年　1月３０日　改定"]
["　　令和　４年　３月３１日　改定"]
[]
["【 達成度総合評価基準 】"]
["　　平成２８年　６月　１日　改訂 （達成度評価基準を改称）"]
["　　平成２９年　３月３１日　改訂 （略称追加）"]
["　　平成３１年　３月３１日　改訂 （解説一部変更）"]
["　　令和　２年　1月３０日　改定 （倫理・解説一部変更）"]
["　　令和　３年　３月３１日　改定 （科目名（データサイエンス）変更）"]
["　　令和　４年　３月３１日　改定 "]
[]
["　　　　　　　　　　　　　　　　　　　　　　　　　　　　　　　発効日　令和　４年　４月　１日"]
["　　　　　　　　　　　　　　　　　　　　　　　　　　　　　　　発行者　京都工芸繊維大学　工芸科学部　設計工学域　機械工学課程"]